Body Name,Body,Service Level,Expense Type,Expense Code,Narrative,Date,Transaction Number,Amount,Capital and Revenue,Supplier Name,Supplier ID
South Ribble Borough Council,http://statistics.data.gov.uk/id/local-authority/30UE,Area 3 - Parks/Leyland East West,Cap Contract Payment,C230,"Improvement works to the overflow car park at Worden Park, Leyland",26/02/2021,0000464714,"52,089.50",Revenue,A & G Landscapes & Groundworks LTD,0
South Ribble Borough Council,http://statistics.data.gov.uk/id/local-authority/30UE,Area 3 - Parks/Leyland East West,Cap Contract Payment,C230,LABOUR,26/02/2021,0000464714,"1,000.00",Revenue,A & G Landscapes & Groundworks LTD,0
South Ribble Borough Council,http://statistics.data.gov.uk/id/local-authority/30UE,Area 2 - Waste Transport/Eastern & Central Teams,Materials General,4040,1 x brake caliper PJ62UCG JFC16005,05/02/2021,0000462335,565.11,Revenue,AA UK CV t/a Hydrair Truck & Trailer,0
South Ribble Borough Council,http://statistics.data.gov.uk/id/local-authority/30UE,Area 2 - Waste Transport/Eastern & Central Teams,Materials General,4040,BRAKE CHAMBER - PJ62UCG - JFC16005,05/02/2021,0000462375,286.99,Revenue,AA UK CV t/a Hydrair Truck & Trailer,0
South Ribble Borough Council,http://statistics.data.gov.uk/id/local-authority/30UE,Area 2 - Waste Transport/Eastern & Central Teams,Materials General,4040,1 x brake valve JFC16152,19/02/2021,0000464349,299.14,Revenue,AA UK CV t/a Hydrair Truck & Trailer,0
South Ribble Borough Council,http://statistics.data.gov.uk/id/local-authority/30UE,Regeneration,Operational Equip & Tools,4010,151 Lenovo tablets  (schools project),12/02/2021,0000463995,"19,932.00",Revenue,Abbey Telecoms Limited,0
South Ribble Borough Council,http://statistics.data.gov.uk/id/local-authority/30UE,Healthy Communities,Professional Fees,4510,16 places on Safeguarding & Protecting Children. 2 Places on Discover Assest-Based Community Development Course Total = 824,05/02/2021,0000463931,824.00,Revenue,ACTIVE LANCASHIRE,0
South Ribble Borough Council,http://statistics.data.gov.uk/id/local-authority/30UE,Property Services,Advertising,4841,LED Torch Flat plastic key ring  BLUE Product Ref:PP-TL16 - 1 Colour Print X 500 as per NAME REDACTED Repeat of 2017 Design,17/02/2021,0000463996,305.00,Revenue,AD OPTIONS LTD,0
South Ribble Borough Council,http://statistics.data.gov.uk/id/local-authority/30UE,Information Services,Network and Security,4247,"100 x Symantec Messaging Gateway, Subscription License with Support, Users 1 YR for period 22/11/20 - 21/11/20 as per quote",26/02/2021,0000464667,735.00,Revenue,Aindale Business and Technology,0
South Ribble Borough Council,http://statistics.data.gov.uk/id/local-authority/30UE,Environmental Health,Refunded Income,485R,part refund,12/02/2021,0000464132,295.00,Revenue,NAME REDACTED,0
South Ribble Borough Council,http://statistics.data.gov.uk/id/local-authority/30UE,Legal,Legal,4821,"PROFESSIONAL CHARGES IN CONNECTION WITH SALE OF THE EAGLE & CHILD BOWLING GREEN, CHURCH ROAD, LEYLAND",03/02/2021,0000462336,500.00,Revenue,Ansons Solicitors,0
South Ribble Borough Council,http://statistics.data.gov.uk/id/local-authority/30UE,Shared Assurance Services,Fidelity Guarantee,1800,"General Property, Commercial Property and Business Interruption, Contract works, Computers, Crime and Terrorism - including IPT",24/02/2021,0000464586,"4,844.00",Revenue,Aon UK Limited Accounts Division,0
South Ribble Borough Council,http://statistics.data.gov.uk/id/local-authority/30UE,Shared Assurance Services,Fidelity Guarantee,1800,"General Property, Commercial Property and Business Interruption, Contract works, Computers, Crime and Terrorism - including IPT",24/02/2021,0000464620,"6,107.84",Revenue,Aon UK Limited Accounts Division,0
South Ribble Borough Council,http://statistics.data.gov.uk/id/local-authority/30UE,Shared Assurance Services,Fidelity Guarantee,1800,"General Property, Commercial Property and Business Interruption, Contract works, Computers, Crime and Terrorism - including IPT",24/02/2021,0000464621,"4,390.40",Revenue,Aon UK Limited Accounts Division,0
South Ribble Borough Council,http://statistics.data.gov.uk/id/local-authority/30UE,Shared Assurance Services,Fidelity Guarantee,1800,"General Property, Commercial Property and Business Interruption, Contract works, Computers, Crime and Terrorism - including IPT",24/02/2021,0000464622,"48,603.21",Revenue,Aon UK Limited Accounts Division,0
South Ribble Borough Council,http://statistics.data.gov.uk/id/local-authority/30UE,Shared Assurance Services,Fidelity Guarantee,1800,"General Property, Commercial Property and Business Interruption, Contract works, Computers, Crime and Terrorism - including IPT",24/02/2021,0000464623,"4,127.20",Revenue,Aon UK Limited Accounts Division,0
South Ribble Borough Council,http://statistics.data.gov.uk/id/local-authority/30UE,Area 2 - Waste Transport/Eastern & Central Teams,Publicity & Promotion,4842,Hire of D2TL Luton van with Tail Lift 14.9.20 - 12.10.20 = 746.75 Delivery & Collection 4.00 each Road fund licence 49.30,12/02/2021,0000464163,383.40,Revenue,ARNOLD CLARK CAR & VAN RENTAL,0
South Ribble Borough Council,http://statistics.data.gov.uk/id/local-authority/30UE,Shared Financial Services,Lease Car Rental,1131,"NAME REDACTED Citroen Grand C4 Spacetourer - 1.5 BlueHDi 130 Flair Plus 5dr EAT8, Onyx Black, 3 Years, 8,000 miles PA, Estate",10/02/2021,0000463748,"4,414.20",Revenue,Arnold Clark Finance Ltd (Lease Cars),0
South Ribble Borough Council,http://statistics.data.gov.uk/id/local-authority/30UE,Shared Assurance Services,Fidelity Guarantee,1800,Insurance Brokerage Arthur J Gallagher 2021 - Annual Consultancy Fees,17/02/2021,0000463731,525.00,Revenue,Arthur J. Gallagher,0
South Ribble Borough Council,http://statistics.data.gov.uk/id/local-authority/30UE,Shared Assurance Services,Fidelity Guarantee,1800,"Insurance Brokerage Arthur J Gallagher - 2)	Procurement 1st payment",17/02/2021,0000463731,630.00,Revenue,Arthur J. Gallagher,0
South Ribble Borough Council,http://statistics.data.gov.uk/id/local-authority/30UE,Environmental Health,External Contractors Charges,4570,Quote AD146CR for works at ADDRESS REDACTED per NAME REDACTED.,10/02/2021,0000464066,"7,476.00",Revenue,ASH BARN CONSTRUCTION LTD,0
South Ribble Borough Council,http://statistics.data.gov.uk/id/local-authority/30UE,Environmental Health,External Contractors Charges,4570,Quote AD153B for works on ADDRESS REDACTED per NAME REDACTED.,10/02/2021,0000464067,"1,687.00",Revenue,ASH BARN CONSTRUCTION LTD,0
South Ribble Borough Council,http://statistics.data.gov.uk/id/local-authority/30UE,Housing,Cap Contract Payment,C230,"To carry out conversion works and create 9 self contained flats as tendered at Pearson House, Station Road, Bamber Bridge",24/02/2021,0000464582,"24,800.00",Revenue,ASH BARN CONSTRUCTION LTD,0
South Ribble Borough Council,http://statistics.data.gov.uk/id/local-authority/30UE,Housing,Cap Contract Payment,C230,"To carry out conversion works and create 9 self contained flats as tendered at Pearson House, Station Road, Bamber Bridge",24/02/2021,0000464583,"24,600.00",Revenue,ASH BARN CONSTRUCTION LTD,0
South Ribble Borough Council,http://statistics.data.gov.uk/id/local-authority/30UE,Environmental Health,External Contractors Charges,4570,"Works to guttering per quote ADDRESS REDACTED, Per NAME REDACTED",24/02/2021,0000464615,480.00,Revenue,ASH BARN CONSTRUCTION LTD,0
South Ribble Borough Council,http://statistics.data.gov.uk/id/local-authority/30UE,Development Enterprise & Comm Mgnt,Partnership,485I, 2021 Full Band 2 Membership @ 695.00 + VAT Requested by NAME REDACTED,26/02/2021,0000463979,695.00,Revenue,Association of Town Centre Management,0
South Ribble Borough Council,http://statistics.data.gov.uk/id/local-authority/30UE,Democratic Services,Computer Software,4242,"4 x FTM3502 MFC Modesty Panel 130 for desk 160cm, ftm35, Silver MFC and 4 x Installations & delivery",26/02/2021,0000464709,618.00,Revenue,AUDITEL,0
South Ribble Borough Council,http://statistics.data.gov.uk/id/local-authority/30UE,Area 2 - Waste Transport/Eastern & Central Teams,Publicity & Promotion,4842,Wheelie Bin Stickers - Quote 158234,05/02/2021,0000462478,934.00,Revenue,B & D PRINT SERVICES LTD,0
South Ribble Borough Council,http://statistics.data.gov.uk/id/local-authority/30UE,Area 2 - Waste Transport/Eastern & Central Teams,Materials General,4040,1 x service kit PJ69 NWG JFC16067,05/02/2021,0000463693,270.88,Revenue,BALMERS GM LTD,0
South Ribble Borough Council,http://statistics.data.gov.uk/id/local-authority/30UE,Area 2 - Waste Transport/Eastern & Central Teams,Materials General,4040,"1x OIL FILTER, 2x AIR FILTERS, 1x FUEL FILTER, 1x HYDRAULIC FILTER, 3x BOTTOM BLADES, 39x SCREWS, MX19 JMO",19/02/2021,0000464110,323.91,Revenue,BALMERS GM LTD,0
South Ribble Borough Council,http://statistics.data.gov.uk/id/local-authority/30UE,Regeneration,Cap Contract Payment,C230,"Please provide a detailed contaminated land survey to land at bent Lane, Leyland as agreed with SRBC regeneration dept.",03/02/2021,0000462442,"2,405.00",Revenue,BEK Enviro,0
South Ribble Borough Council,http://statistics.data.gov.uk/id/local-authority/30UE,Property Services,Reactive Repair & Maintenance,2020,Depot,26/02/2021,0000464436,284.00,Revenue,BELEC ELECTRICAL LTD,0
South Ribble Borough Council,http://statistics.data.gov.uk/id/local-authority/30UE,Property Services,Miscellaneous Expenses,4851,Please undertake an electrical test to the Eagle & Child Bowling green as per your quotation to the estates section,26/02/2021,0000464461,260.00,Revenue,BELEC ELECTRICAL LTD,0
South Ribble Borough Council,http://statistics.data.gov.uk/id/local-authority/30UE,Property Services,Reactive Repair & Maintenance,2020,Please attend toilet block at Bamber Bridge  - reported problem with hot water geyser boiler as per NAME REDACTED - X2 as per email,26/02/2021,0000464463,468.00,Revenue,BELEC ELECTRICAL LTD,0
South Ribble Borough Council,http://statistics.data.gov.uk/id/local-authority/30UE,Property Services,Reactive Repair & Maintenance,2020,Annual Contract 2020/2021 Electrical Testing and Electrical  Installation Test at Leyland Market,26/02/2021,0000464465,260.00,Revenue,BELEC ELECTRICAL LTD,0
South Ribble Borough Council,http://statistics.data.gov.uk/id/local-authority/30UE,Property Services,Reactive Repair & Maintenance,2020,Annual Contract 2020/2021 Electrical Testing and Electrical  Installation Test at Public Conveniences,26/02/2021,0000464466,260.00,Revenue,BELEC ELECTRICAL LTD,0
South Ribble Borough Council,http://statistics.data.gov.uk/id/local-authority/30UE,Property Services,Reactive Repair & Maintenance,2020,Annual Inspection 2020/2021 for electrical testing on remainder of sports pavilions,26/02/2021,0000464699,412.76,Revenue,BELEC ELECTRICAL LTD,0
South Ribble Borough Council,http://statistics.data.gov.uk/id/local-authority/30UE,Property Services,Reactive Repair & Maintenance,2020,Extra order to cover the remainder of the sports pavilions to include remedial works  for 2020/2021,26/02/2021,0000464700,260.00,Revenue,BELEC ELECTRICAL LTD,0
South Ribble Borough Council,http://statistics.data.gov.uk/id/local-authority/30UE,Property Services,Reactive Repair & Maintenance,2020,Extra order to cover the remainder of the sports pavilions to include remedial works  for 2020/2021,26/02/2021,0000464711,260.00,Revenue,BELEC ELECTRICAL LTD,0
South Ribble Borough Council,http://statistics.data.gov.uk/id/local-authority/30UE,Development Enterprise & Comm Mgnt,Partnership,485I,"Subscription to Evolutive for 1st Jan  31st Dec 2021. Cost to SRBC for 2021 would be 1,618 + VAT. Requested by NAME REDACTED",12/02/2021,0000463945,"1,618.00",Revenue,BLACKBURN WITH DARWEN BOROUGH COUNCIL,0
South Ribble Borough Council,http://statistics.data.gov.uk/id/local-authority/30UE,Area 2 - Waste Transport/Eastern & Central Teams,Operational Equip & Tools,4010,workshop,05/02/2021,0000463921,675.20,Revenue,BOC GASES,0
South Ribble Borough Council,http://statistics.data.gov.uk/id/local-authority/30UE,Area 2 - Waste Transport/Eastern & Central Teams,Operational Equip & Tools,4010,NWT,05/02/2021,0000463921,2.65,Revenue,BOC GASES,0
South Ribble Borough Council,http://statistics.data.gov.uk/id/local-authority/30UE,Area 2 - Waste Transport/Eastern & Central Teams,Miscellaneous Expenses,4851,regen,05/02/2021,0000463921,6.70,Revenue,BOC GASES,0
South Ribble Borough Council,http://statistics.data.gov.uk/id/local-authority/30UE,Property Services,Operational Equip & Tools,4010,We require 4 x Paper recycling bins WAS0029A Blue Lid � Paper 80 Litre 109.22 x 4 = 436.88,10/02/2021,0000464048,451.83,Revenue,Brady Corporation t/a Seton,0
South Ribble Borough Council,http://statistics.data.gov.uk/id/local-authority/30UE,Property Services,Operational Equip & Tools,4010,We require 2 x Paper recycling bins WAS0029A Blue Lid � Paper 80 Litre,26/02/2021,0000464441,298.93,Revenue,Brady Corporation t/a Seton,0
South Ribble Borough Council,http://statistics.data.gov.uk/id/local-authority/30UE,Property Services,Reactive Repair & Maintenance,2020,"This is for a de-humidifier to be fitted to ADDRESS REDACTED.240, this will cover us up to Christmas. As per NAME REDACTED",17/02/2021,0000464060,485.00,Revenue,Brandon Hire Limited,0
South Ribble Borough Council,http://statistics.data.gov.uk/id/local-authority/30UE,Area 2 - Waste Transport/Eastern & Central Teams,Materials General,4040,"1X SWING OUT RAM & RAM BUSH, RV14 DTZ, JFC16051 (NAME REDACTED)",10/02/2021,0000463930,258.19,Revenue,Bucher Municipal Ltd,0
South Ribble Borough Council,http://statistics.data.gov.uk/id/local-authority/30UE,Information Services,Network and Security,4247,"Penetration Testing Project, as per quote ref. BPD0020620-03",26/02/2021,0000464663,"6,982.50",Revenue,Bulletproof Cyber,0
South Ribble Borough Council,http://statistics.data.gov.uk/id/local-authority/30UE,Information Services,Network and Security,4247,Penetration Testing Project,24/02/2021,0000464666,"2,992.50",Revenue,Bulletproof Cyber,0
South Ribble Borough Council,http://statistics.data.gov.uk/id/local-authority/30UE,Revenues Plus,Other Fees,4520,EOY and subsidy webinars,24/02/2021,0000464596,"1,750.00",Revenue,CAPITA BUSINESS SERVICES LTD,0
South Ribble Borough Council,http://statistics.data.gov.uk/id/local-authority/30UE,HR & Communications,Short Course,1402,"NAME REDACTED TO ATTEND `WATER SAMPLING` COURSE ON 23 & 24 NOVEMBER 2020 AT MALHAM, NORTH YORKSHIRE",03/02/2021,0000462254,495.00,Revenue,CATG Ltd,0
South Ribble Borough Council,http://statistics.data.gov.uk/id/local-authority/30UE,HR & Communications,Individual Subs Prof. Bodies,1741,MEMBERSHIP SUBSCRIPTION RENEWAL FOR NAME REDACTED 1 JANUARY - 31 DECEMBER 2021,03/02/2021,0000463681,313.00,Revenue,CHARTERED INST OF HOUSING,0
South Ribble Borough Council,http://statistics.data.gov.uk/id/local-authority/30UE,HR & Communications,Individual Subs Prof. Bodies,1741,MEMBERSHIP SUBSCRIPTION RENEWAL FOR NAME REDACTED - 1.01.21 - 31.12.21 -,17/02/2021,0000464186,313.00,Revenue,CHARTERED INST OF HOUSING,0
South Ribble Borough Council,http://statistics.data.gov.uk/id/local-authority/30UE,Homelessness,Contributions to Other Bodies,4730,Cotswold House placement NAME REDACTED cont w/c 1.1.2021,05/02/2021,0000463635,270.41,Revenue,CHORLEY BOROUGH COUNCIL,0
South Ribble Borough Council,http://statistics.data.gov.uk/id/local-authority/30UE,Homelessness,Contributions to Other Bodies,4730,Cotswold House placement NAME REDACTED  cont w/c 8.1.2021,05/02/2021,0000463635,270.41,Revenue,CHORLEY BOROUGH COUNCIL,0
South Ribble Borough Council,http://statistics.data.gov.uk/id/local-authority/30UE,Homelessness,Contributions to Other Bodies,4730,Cotswold House placement NAME REDACTED cont w/c15.1.2021,05/02/2021,0000463635,270.41,Revenue,CHORLEY BOROUGH COUNCIL,0
South Ribble Borough Council,http://statistics.data.gov.uk/id/local-authority/30UE,Homelessness,Contributions to Other Bodies,4730,Cotswold House placement NAME REDACTED cont w/c22.1.2020,05/02/2021,0000463635,386.30,Revenue,CHORLEY BOROUGH COUNCIL,0
South Ribble Borough Council,http://statistics.data.gov.uk/id/local-authority/30UE,Planning,Professional Fees,4510,2019/20 Local Plan costs,12/02/2021,0000463932,"82,295.11",Revenue,CHORLEY BOROUGH COUNCIL,0
South Ribble Borough Council,http://statistics.data.gov.uk/id/local-authority/30UE,Area 2 - Waste Transport/Eastern & Central Teams,External Contractors Charges,4570,Admin charge for Opt In Green Waste Service 389 applications @ 2.00,12/02/2021,0000464068,778.00,Revenue,CHORLEY BOROUGH COUNCIL,0
South Ribble Borough Council,http://statistics.data.gov.uk/id/local-authority/30UE,Area 1 - Penwortham Western Parishes,Maintenance & Repair,4013,CCTV - BT Connection charge for new RS1000D 100mb link at Moss Lane Underpass,17/02/2021,0000464071,"3,900.00",Revenue,CHORLEY BOROUGH COUNCIL,0
South Ribble Borough Council,http://statistics.data.gov.uk/id/local-authority/30UE,Area 1 - Penwortham Western Parishes,Maintenance & Repair,4013,Annual charge  - CCTV Moss Lane Underpass 50% cost for SRBC and Chorley,17/02/2021,0000464071,360.14,Revenue,CHORLEY BOROUGH COUNCIL,0
South Ribble Borough Council,http://statistics.data.gov.uk/id/local-authority/30UE,Democratic Services,Polling Centre Costs,4421,"Services provided by Chorley on behalf of South Ribble for the UKPGE on 12 December 2019, preparation, staffing, hire of poll stations.",24/02/2021,0000464412,"4,814.29",Revenue,CHORLEY BOROUGH COUNCIL,0
South Ribble Borough Council,http://statistics.data.gov.uk/id/local-authority/30UE,Democratic Services,Polling Card Costs,4423,"Services provided by Chorley on behalf of South Ribble for the UKPGE on 12 December 2019, preparation, staffing, hire of poll stations.",24/02/2021,0000464412,"3,379.20",Revenue,CHORLEY BOROUGH COUNCIL,0
South Ribble Borough Council,http://statistics.data.gov.uk/id/local-authority/30UE,Planning,Microfilming General,4151,The renewal premium for your Micrographic equipment,12/02/2021,0000463627,400.00,Revenue,Covergold Limited,0
South Ribble Borough Council,http://statistics.data.gov.uk/id/local-authority/30UE,Area 3 - Parks/Leyland East West,GM Refurbishment,4657,"80no. whole balusters, 6no. half balusters and 45no. packers.  All in Cotswold colour and incl manufacture of new mould.  As per quote",03/02/2021,0000463691,"4,128.50",Revenue,Cranborne Stone Ltd,0
South Ribble Borough Council,http://statistics.data.gov.uk/id/local-authority/30UE,Revenues Plus,Postage General,4291,Postage October to March 2021,10/02/2021,0000463984,447.71,Revenue,CRITIQOM,0
South Ribble Borough Council,http://statistics.data.gov.uk/id/local-authority/30UE,Revenues Plus,Postage General,4291,Postage October to March 2021,12/02/2021,0000464122,518.61,Revenue,CRITIQOM,0
South Ribble Borough Council,http://statistics.data.gov.uk/id/local-authority/30UE,Revenues Plus,Postage General,4291,Postage October to March 2021,26/02/2021,0000464568,389.96,Revenue,CRITIQOM,0
South Ribble Borough Council,http://statistics.data.gov.uk/id/local-authority/30UE,Legal,Legal,4821,PROFESSIONAL SERVICES IN RELATION TO AN EMPLOYMENT TRIBUNAL MATTER.,19/02/2021,0000464423,"12,415.72",Revenue,DAC BEACHCROFT LLP,0
South Ribble Borough Council,http://statistics.data.gov.uk/id/local-authority/30UE,Area 2 - Waste Transport/Eastern & Central Teams,External Contractors Charges,4570,Insurance excess and VAT charges for accident repairs BJ66SKU JFC15002,19/02/2021,0000464414,250.00,Revenue,DAVAND LTD (trading as Longton Coachcraft),0
South Ribble Borough Council,http://statistics.data.gov.uk/id/local-authority/30UE,Area 2 - Waste Transport/Eastern & Central Teams,External Contractors Charges,4570,vat,19/02/2021,0000464414,0.00,Revenue,DAVAND LTD (trading as Longton Coachcraft),0
South Ribble Borough Council,http://statistics.data.gov.uk/id/local-authority/30UE,Area 2 - Waste Transport/Eastern & Central Teams,Materials General,4040,2 x brake discs 2 x spindle nuts 1 x bumper end cap kit VO65KRE JFC16180,24/02/2021,0000464608,506.88,Revenue,DENNIS EAGLE LTD,0
South Ribble Borough Council,http://statistics.data.gov.uk/id/local-authority/30UE,Neighbourhood Admin & Support,Operational Equip & Tools,4010,STIHL CHAINSAW LUBRICANT - MIC025,12/02/2021,0000464009,99.00,Revenue,DICK LEIGH,0
South Ribble Borough Council,http://statistics.data.gov.uk/id/local-authority/30UE,Neighbourhood Admin & Support,Operational Equip & Tools,4010,CHAINSAW CHAIN 12`` - ST36160030044,12/02/2021,0000464009,28.86,Revenue,DICK LEIGH,0
South Ribble Borough Council,http://statistics.data.gov.uk/id/local-authority/30UE,Neighbourhood Admin & Support,Operational Equip & Tools,4010,CHAINSAW CHAIN 36`` - ST36210000114,12/02/2021,0000464009,85.01,Revenue,DICK LEIGH,0
South Ribble Borough Council,http://statistics.data.gov.uk/id/local-authority/30UE,Neighbourhood Admin & Support,Clothing and Uniforms,4410,CHAINSAW GLOVES - HUSQVARNA - 579380209,12/02/2021,0000464009,59.49,Revenue,DICK LEIGH,0
South Ribble Borough Council,http://statistics.data.gov.uk/id/local-authority/30UE,Information Services,Telecomms - Mobile,4260,01 feb 2021,10/02/2021,0000464047,"4,204.37",Revenue,EE Ltd,0
South Ribble Borough Council,http://statistics.data.gov.uk/id/local-authority/30UE,Democratic Services,Civic & Remembrance Day,463A,"5 X UNION JACK FLAGS, 2 X CIVIC CREST FLATS (3 ACORNS), 2 YARDS IN SIZE AS PREVIOUSLY ORDERED.",26/02/2021,0000464720,923.00,Revenue,ENSIGN FLAGS CO LTD,0
South Ribble Borough Council,http://statistics.data.gov.uk/id/local-authority/30UE,Area 2 - Waste Transport/Eastern & Central Teams,Materials General,4040,20x Orange 360 Ltr Lid with Pins colour FC060 as per your quote QT-17303/1,05/02/2021,0000463734,366.80,Revenue,ESE WORLD LTD,0
South Ribble Borough Council,http://statistics.data.gov.uk/id/local-authority/30UE,Area 2 - Waste Transport/Eastern & Central Teams,Hiring Expenses,3212,cancelled by credit CN-20844,03/02/2021,0000462468,"1,300.00",Revenue,Euro Municipals Ltd,0
South Ribble Borough Council,http://statistics.data.gov.uk/id/local-authority/30UE,Area 2 - Waste Transport/Eastern & Central Teams,Materials General,4040,1 x bin lift ram 2 x bare tanks PJ62UCM JFC16149,24/02/2021,0000464181,525.00,Revenue,Euro Municipals Ltd,0
South Ribble Borough Council,http://statistics.data.gov.uk/id/local-authority/30UE,Area 2 - Waste Transport/Eastern & Central Teams,Materials General,4040,1 x hub bearing 1 x heater motor VU60HLE JFC16091,19/02/2021,0000464405,425.00,Revenue,Euro Municipals Ltd,0
South Ribble Borough Council,http://statistics.data.gov.uk/id/local-authority/30UE,Healthy Communities,Cap Contract Payment,C230,"Hoarding for Former McKenzie Arms, 39 Mtrs of Fencesafe Hoard by CLD, 2.4 Mtr high, 32 x 500mm. plastic profile hoarding ",17/02/2021,0000462479,"12,119.83",Revenue,Farefence NW Ltd,0
South Ribble Borough Council,http://statistics.data.gov.uk/id/local-authority/30UE,Area 2 - Waste Transport/Eastern & Central Teams,External Contractors Charges,4570,Residual Waste Collections January 2021,24/02/2021,0000464134,"46,869.90",Revenue,FCC Environment Services (UK) Ltd,0
South Ribble Borough Council,http://statistics.data.gov.uk/id/local-authority/30UE,Area 2 - Waste Transport/Eastern & Central Teams,External Contractors Charges,4570,Dry recyclable (non-terraced) Collections January 2021,24/02/2021,0000464134,"47,981.92",Revenue,FCC Environment Services (UK) Ltd,0
South Ribble Borough Council,http://statistics.data.gov.uk/id/local-authority/30UE,Area 2 - Waste Transport/Eastern & Central Teams,External Contractors Charges,4570,Dry recycled (Terraced) Collections January 2021,24/02/2021,0000464134,"2,283.78",Revenue,FCC Environment Services (UK) Ltd,0
South Ribble Borough Council,http://statistics.data.gov.uk/id/local-authority/30UE,Area 2 - Waste Transport/Eastern & Central Teams,External Contractors Charges,4570,Organic Waste (Non terraced) Collections January 2021,24/02/2021,0000464134,"33,222.59",Revenue,FCC Environment Services (UK) Ltd,0
South Ribble Borough Council,http://statistics.data.gov.uk/id/local-authority/30UE,Area 2 - Waste Transport/Eastern & Central Teams,External Contractors Charges,4570,Schedule 2 properties Collections January 2021,24/02/2021,0000464134,"1,910.50",Revenue,FCC Environment Services (UK) Ltd,0
South Ribble Borough Council,http://statistics.data.gov.uk/id/local-authority/30UE,Area 2 - Waste Transport/Eastern & Central Teams,External Contractors Charges,4570,Commercial Collections  January 2021,24/02/2021,0000464134,"7,439.27",Revenue,FCC Environment Services (UK) Ltd,0
South Ribble Borough Council,http://statistics.data.gov.uk/id/local-authority/30UE,Area 2 - Waste Transport/Eastern & Central Teams,External Contractors Charges,4570,Bulky Waste Collections January 2021,24/02/2021,0000464134,"1,032.37",Revenue,FCC Environment Services (UK) Ltd,0
South Ribble Borough Council,http://statistics.data.gov.uk/id/local-authority/30UE,Area 2 - Waste Transport/Eastern & Central Teams,External Contractors Charges,4570,WEEE Collections January 2021,24/02/2021,0000464134,387.78,Revenue,FCC Environment Services (UK) Ltd,0
South Ribble Borough Council,http://statistics.data.gov.uk/id/local-authority/30UE,Area 2 - Waste Transport/Eastern & Central Teams,External Contractors Charges,4570,Clinical Waste Collections January 2021,24/02/2021,0000464134,660.62,Revenue,FCC Environment Services (UK) Ltd,0
South Ribble Borough Council,http://statistics.data.gov.uk/id/local-authority/30UE,Area 2 - Waste Transport/Eastern & Central Teams,External Contractors Charges,4570,Replacement Bins January 2021,24/02/2021,0000464134,"5,000.00",Revenue,FCC Environment Services (UK) Ltd,0
South Ribble Borough Council,http://statistics.data.gov.uk/id/local-authority/30UE,Area 2 - Waste Transport/Eastern & Central Teams,External Contractors Charges,4570,Additional Properties January 2021,24/02/2021,0000464134,"4,116.80",Revenue,FCC Environment Services (UK) Ltd,0
South Ribble Borough Council,http://statistics.data.gov.uk/id/local-authority/30UE,Area 2 - Waste Transport/Eastern & Central Teams,Amount Paid,0030,refuse retention,24/02/2021,0000464134,"-3,120.86",Revenue,FCC Environment Services (UK) Ltd,0
South Ribble Borough Council,http://statistics.data.gov.uk/id/local-authority/30UE,Area 2 - Waste Transport/Eastern & Central Teams,Amount Paid,0030,recycling ret,24/02/2021,0000464134,"-4,174.41",Revenue,FCC Environment Services (UK) Ltd,0
South Ribble Borough Council,http://statistics.data.gov.uk/id/local-authority/30UE,Area 2 - Waste Transport/Eastern & Central Teams,External Contractors Charges,4570,Additional Clinical Waste Collections January 2021,19/02/2021,0000464135,436.54,Revenue,FCC Environment Services (UK) Ltd,0
South Ribble Borough Council,http://statistics.data.gov.uk/id/local-authority/30UE,Area 2 - Waste Transport/Eastern & Central Teams,Amount Paid,0030,retention,19/02/2021,0000464135,-21.83,Revenue,FCC Environment Services (UK) Ltd,0
South Ribble Borough Council,http://statistics.data.gov.uk/id/local-authority/30UE,Area 2 - Waste Transport/Eastern & Central Teams,External Contractors Charges,4570,Additional WEEE Collections January 2021,19/02/2021,0000464136,421.44,Revenue,FCC Environment Services (UK) Ltd,0
South Ribble Borough Council,http://statistics.data.gov.uk/id/local-authority/30UE,Area 2 - Waste Transport/Eastern & Central Teams,External Contractors Charges,4570,Additional Bulky Waste Collections January 2021,19/02/2021,0000464136,458.15,Revenue,FCC Environment Services (UK) Ltd,0
South Ribble Borough Council,http://statistics.data.gov.uk/id/local-authority/30UE,Area 2 - Waste Transport/Eastern & Central Teams,Amount Paid,0030,retention,19/02/2021,0000464136,-43.98,Revenue,FCC Environment Services (UK) Ltd,0
South Ribble Borough Council,http://statistics.data.gov.uk/id/local-authority/30UE,Area 3 - Parks/Leyland East West,Operational Equip & Tools,4010,1 x KOMBI CLASSIC LINE MARKER (as per your quotation LP013324),12/02/2021,0000463687,658.00,Revenue,Fleet Line Markers Limited,0
South Ribble Borough Council,http://statistics.data.gov.uk/id/local-authority/30UE,Property Services,Consultancy Fees,4541,Leisure Management contract consultancy work Sept 2020. (Mgmt Options Paper LATC and In House Paper) per NAME REDACTED,05/02/2021,0000463933,"3,250.00",Revenue,FMG Consulting Ltd,0
South Ribble Borough Council,http://statistics.data.gov.uk/id/local-authority/30UE,Planning,Operational Equip & Tools,4010,HP XL-3600 Printhead reference B3P06A No HP727,12/02/2021,0000462481,304.46,Revenue,GCS UK ASSOCIATES LTD,0
South Ribble Borough Council,http://statistics.data.gov.uk/id/local-authority/30UE,Legal,Legal,4821,"PROFESSIONAL SERVICES WITH REGARD WAINHOMES NORTH WEST LTD - LAND REAR OF OAKDENE, CHAIN HOUSE LANE",12/02/2021,0000464139,"2,800.00",Revenue,Giles Cannock,0
South Ribble Borough Council,http://statistics.data.gov.uk/id/local-authority/30UE,Legal,Legal,4821,"PROFESSIONAL SERVICES WITH REGARD WAINHOMES NORTH WEST LTD - LAND REAR OF OAKDENE, CHAIN HOUSE LANE",19/02/2021,0000464408,700.00,Revenue,Giles Cannock,0
South Ribble Borough Council,http://statistics.data.gov.uk/id/local-authority/30UE,Legal,Legal,4821,"PROFESSIONAL SERVICES WITH REGARD WAINHOMES NORTH WEST LTD - LAND REAR OF OAKDENE, CHAIN HOUSE LANE",26/02/2021,0000464665,"1,750.00",Revenue,Giles Cannock,0
South Ribble Borough Council,http://statistics.data.gov.uk/id/local-authority/30UE,Area 2 - Waste Transport/Eastern & Central Teams,Merchant Charges,4816,Direct Debit Management Service for the Green Waste Service 2020/21,24/02/2021,0000464573,"3,434.95",Revenue,GoCardless Ltd,0
South Ribble Borough Council,http://statistics.data.gov.uk/id/local-authority/30UE,Area 2 - Waste Transport/Eastern & Central Teams,Merchant Charges,4816,diff in vat,24/02/2021,0000464573,0.00,Revenue,GoCardless Ltd,0
South Ribble Borough Council,http://statistics.data.gov.uk/id/local-authority/30UE,Development Enterprise & Comm Mgnt,Investment & Improvement,485K,For setting up the Leyland Town Deal Website as per quote QUO 8254 and ref number 20356,03/02/2021,0000462330,"3,000.00",Revenue,Goss Interactive Limited,0
South Ribble Borough Council,http://statistics.data.gov.uk/id/local-authority/30UE,Area 2 - Waste Transport/Eastern & Central Teams,Materials General,4040,4 x EKBS DENNIS/VOLVO DISC PAD KIT - BIN 539,10/02/2021,0000463987,340.00,Revenue,H & J SERVICES LTD,0
South Ribble Borough Council,http://statistics.data.gov.uk/id/local-authority/30UE,Area 1 - Penwortham Western Parishes,Materials General,4040,1 pallet of 20kg Rock Salt @ 4.00 per bag,03/02/2021,0000462255,252.00,Revenue,HENRY ALTY LTD,0
South Ribble Borough Council,http://statistics.data.gov.uk/id/local-authority/30UE,Area 1 - Penwortham Western Parishes,Materials General,4040,1 pallet Rock Salt (20kg bags) AGG01056 - 63 bags @ 4.00,17/02/2021,0000464331,252.00,Revenue,HENRY ALTY LTD,0
South Ribble Borough Council,http://statistics.data.gov.uk/id/local-authority/30UE,Shared Financial Services,Amount Received,0140,,10/02/2021,0000462195,956.93,Revenue,HM REVENUE & CUSTOMS,0
South Ribble Borough Council,http://statistics.data.gov.uk/id/local-authority/30UE,Shared Financial Services,Amount Received,0140,,10/02/2021,0000462471,"3,044.89",Revenue,HM REVENUE & CUSTOMS,0
South Ribble Borough Council,http://statistics.data.gov.uk/id/local-authority/30UE,Shared Financial Services,Amount Received,0140,,10/02/2021,0000463677,491.40,Revenue,HM REVENUE & CUSTOMS,0
South Ribble Borough Council,http://statistics.data.gov.uk/id/local-authority/30UE,Property Services,Reactive Repair & Maintenance,2020,LABOUR Please undertake works to Take down door build up wall with block work Fit skirting to make good Paint both sides,19/02/2021,0000464390,"1,084.38",Revenue,Holden Building Solutions Limited,0
South Ribble Borough Council,http://statistics.data.gov.uk/id/local-authority/30UE,Property Services,Reactive Repair & Maintenance,2020,LABOUR Fire Exit Nosings - Supply and install 14 number Yellow anti slip nosings approx 55mm x 55mm at 1m Supply and install 1 ,19/02/2021,0000464390,238.56,Revenue,Holden Building Solutions Limited,0
South Ribble Borough Council,http://statistics.data.gov.uk/id/local-authority/30UE,Property Services,Reactive Repair & Maintenance,2020,LABOUR FCC Reception - Supply and install 2 number perpex screens within a frame for covid protection Supply and install a yale lock,19/02/2021,0000464390,443.52,Revenue,Holden Building Solutions Limited,0
South Ribble Borough Council,http://statistics.data.gov.uk/id/local-authority/30UE,Property Services,Reactive Repair & Maintenance,2020,MATERIALS LINE 1 - avacab,19/02/2021,0000464390,155.00,Revenue,Holden Building Solutions Limited,0
South Ribble Borough Council,http://statistics.data.gov.uk/id/local-authority/30UE,Property Services,Reactive Repair & Maintenance,2020,MATERIALS LINE 2 - yellow anti slip,19/02/2021,0000464390,"1,303.23",Revenue,Holden Building Solutions Limited,0
South Ribble Borough Council,http://statistics.data.gov.uk/id/local-authority/30UE,Property Services,Reactive Repair & Maintenance,2020,MATERIALS LINE 3 - perpex screens,19/02/2021,0000464390,249.15,Revenue,Holden Building Solutions Limited,0
South Ribble Borough Council,http://statistics.data.gov.uk/id/local-authority/30UE,Regeneration,Cap Contract Payment,C230,"Please provide PV solar assessments for Moss Side Depot, Leyland & South Ribble tennis centre agreed with SRBC regeneration dept",03/02/2021,0000461439,500.00,Revenue,Honest-energy LTD,0
South Ribble Borough Council,http://statistics.data.gov.uk/id/local-authority/30UE,Environmental Health,Miscellaneous Expenses,4851,Description: Data SIM cards x15 for digital inclusion project - per NAME REDACTED,19/02/2021,0000464433,449.25,Revenue,Hutchison 3G UK Limited,0
South Ribble Borough Council,http://statistics.data.gov.uk/id/local-authority/30UE,Area 3 - Parks/Leyland East West,Cap Contract Payment,C230,"Post Contract Variations, Site Meetings, Financial Statements (based on 7 months)",24/02/2021,0000464579,"1,375.40",Revenue,Ian Brew QS Consultancy,0
South Ribble Borough Council,http://statistics.data.gov.uk/id/local-authority/30UE,Scrutiny,Corp Subs to Professional Bodies,4720,LG INFORM PLUS MEMBERSHIP SUBSCRIPTION RENEWAL FOR SOUTH RIBBLE BOROUGH COUNCIL - 1 APR 21 - 31 MAR 22,17/02/2021,0000464049,"1,075.00",Revenue,IDEA IMPROVEMENT & DEV AGENCY for LOCAL GOV,0
South Ribble Borough Council,http://statistics.data.gov.uk/id/local-authority/30UE,Democratic Services,Electoral Administration Act,4970,IDOX 2020 CANVASS OPTIONS - AUTOMATED RESPONSE SERVICES,03/02/2021,0000463718,570.00,Revenue,IDOX PLC,0
South Ribble Borough Council,http://statistics.data.gov.uk/id/local-authority/30UE,HR & Communications,Public Relations Strategy,4848,TECHNICAL CONSULTANCY (TEST & LIVE APPLICATION OF NEW PA SKIN),19/02/2021,0000464402,"1,850.00",Revenue,IDOX PLC,0
South Ribble Borough Council,http://statistics.data.gov.uk/id/local-authority/30UE,HR & Communications,Short Course,1402,NAME REDACTED TO ATTEND CENTRAL AND LOCAL GOVERNMENT - THE FUTURE OF LOCAL GOVERNMENT MARCH 2021,05/02/2021,0000463728,396.00,Revenue,IGPP LTD,0
South Ribble Borough Council,http://statistics.data.gov.uk/id/local-authority/30UE,Area 3 - Parks/Leyland East West,Cap Contract Payment,C230,"Architects Fees for Stages 5 and 6, Hurst Grange Coach House, Penwortham",24/02/2021,0000464578,"2,140.00",Revenue,Ivan Wilson Architect,0
South Ribble Borough Council,http://statistics.data.gov.uk/id/local-authority/30UE,Regeneration,Cap Contract Payment,C230,"Please provide trees, storage, supply and delivery as per NAME REDACTED request",03/02/2021,0000462460,"2,899.98",Revenue,J A JONES & SONS,0
South Ribble Borough Council,http://statistics.data.gov.uk/id/local-authority/30UE,Property Services,Reactive Repair & Maintenance,2020,Annual Contract for 2020/2021  please contact to make arrangements to access -NAMES REDACTED Worden Arts Centre,05/02/2021,0000463936,156.00,Revenue,JAMES MERCER GROUP LTD,0
South Ribble Borough Council,http://statistics.data.gov.uk/id/local-authority/30UE,Property Services,Reactive Repair & Maintenance,2020,Annual Contract for 2020 - 2021 please contact for access NAMES REDACTED 3 Farmyard Cottages,05/02/2021,0000463936,156.00,Revenue,JAMES MERCER GROUP LTD,0
South Ribble Borough Council,http://statistics.data.gov.uk/id/local-authority/30UE,Property Services,Reactive Repair & Maintenance,2020,Annual Contract for 2020 - 2021  please contact for access NAMES REDACTED 4 Farmyard Cottages,05/02/2021,0000463936,156.00,Revenue,JAMES MERCER GROUP LTD,0
South Ribble Borough Council,http://statistics.data.gov.uk/id/local-authority/30UE,Property Services,Reactive Repair & Maintenance,2020,Annual Contract for 2020 - 2021  please contact for access NAMES REDACTED Derby Wing,05/02/2021,0000463936,156.00,Revenue,JAMES MERCER GROUP LTD,0
South Ribble Borough Council,http://statistics.data.gov.uk/id/local-authority/30UE,Property Services,Reactive Repair & Maintenance,2020,Annual Contract for the service of the new boiler fitted Aug 2018 in the Formal Gardens Conservatory 2020/2021,05/02/2021,0000463936,156.00,Revenue,JAMES MERCER GROUP LTD,0
South Ribble Borough Council,http://statistics.data.gov.uk/id/local-authority/30UE,Homelessness,Contributions to Other Bodies,4730,NAMES REDACTED payment of rent on ADDRESS REDACTED 106.15/w February 2021 4 weeks rent,17/02/2021,0000463967,424.60,Revenue,NAMES REDACTED,0
South Ribble Borough Council,http://statistics.data.gov.uk/id/local-authority/30UE,Planning,Advertising,4841,Press notices in the Lancashire Evening Post for Planning Applications July 2020 to March 2021,12/02/2021,0000462428,"1,539.00",Revenue,JPI Media - JOHNSTON PUBLISHING (NORTH WEST),0
South Ribble Borough Council,http://statistics.data.gov.uk/id/local-authority/30UE,Area 1 - Penwortham Western Parishes,Cap Contract Payment,C230,"Design and build of new toddler and junior play area, Hurst Grange Park, Penwortham",27/01/2021,0000463719,"68,697.95",Revenue,KOMPAN LTD,0
South Ribble Borough Council,http://statistics.data.gov.uk/id/local-authority/30UE,Area 1 - Penwortham Western Parishes,Cap Contract Payment,C230,"Design and build of new toddler and junior play area, Hurst Grange Park, Penwortham",24/02/2021,0000464417,"65,263.05",Revenue,KOMPAN LTD,0
South Ribble Borough Council,http://statistics.data.gov.uk/id/local-authority/30UE,Area 2 - Waste Transport/Eastern & Central Teams,Clinical Waste Disposal,5112,September 2020 - Incineration of Clinical Waste,05/02/2021,0000463744,432.09,Revenue,LANCASHIRE TEACHING FT,0
South Ribble Borough Council,http://statistics.data.gov.uk/id/local-authority/30UE,Area 2 - Waste Transport/Eastern & Central Teams,Clinical Waste Disposal,5112,November 2020 - Incineration of Clinical Waste,05/02/2021,0000463765,576.88,Revenue,LANCASHIRE TEACHING FT,0
South Ribble Borough Council,http://statistics.data.gov.uk/id/local-authority/30UE,Housing,Capital Grant,C570,DFG GRANT TO SUPPLY AND INSTALL STAIRLIFT AT ADDRESS REDACTED AS PER YOUR QUOTE SUPPLIED OF 7546.00,10/02/2021,0000464000,"7,546.00",Revenue,LANCS COUNTY COUNCIL,0
South Ribble Borough Council,http://statistics.data.gov.uk/id/local-authority/30UE,Legal,L C C General,4530,LAND CHARGES - DECEMBER 2020,17/02/2021,0000464159,695.50,Revenue,LANCS COUNTY COUNCIL,0
South Ribble Borough Council,http://statistics.data.gov.uk/id/local-authority/30UE,Legal,L C C General,4530,LAND CHARGES - JANUARY 2021,17/02/2021,0000464159,"1,063.50",Revenue,LANCS COUNTY COUNCIL,0
South Ribble Borough Council,http://statistics.data.gov.uk/id/local-authority/30UE,Housing,Capital Grant,C570,DFG WORK TO SUPPLY AND INSTALL STAIRLIFT AT ADDRESS REDACTED  AS PER QUOTE SUPPLIED OF 2996.00,17/02/2021,0000464392,"2,996.00",Revenue,LANCS COUNTY COUNCIL,0
South Ribble Borough Council,http://statistics.data.gov.uk/id/local-authority/30UE,Area 2 - Waste Transport/Eastern & Central Teams,Landfilll Charges,5412,"Quarter 3 Disposal Fee, Landfill Tax & 5% Admin Fee",24/02/2021,0000464614,"56,701.94",Revenue,LANCS COUNTY COUNCIL,0
South Ribble Borough Council,http://statistics.data.gov.uk/id/local-authority/30UE,Area 2 - Waste Transport/Eastern & Central Teams,Materials General,4040,4 main mirror BIN 474,05/02/2021,0000463656,398.18,Revenue,LANCS DAF,0
South Ribble Borough Council,http://statistics.data.gov.uk/id/local-authority/30UE,Area 2 - Waste Transport/Eastern & Central Teams,Materials General,4040,3 WIDE ANGLE MIRROR BIN 475,05/02/2021,0000463656,126.00,Revenue,LANCS DAF,0
South Ribble Borough Council,http://statistics.data.gov.uk/id/local-authority/30UE,Area 2 - Waste Transport/Eastern & Central Teams,Materials General,4040,REAR BRAKE DISC - YD19AUM-JFC16112,10/02/2021,0000463977,125.00,Revenue,LANCS DAF,0
South Ribble Borough Council,http://statistics.data.gov.uk/id/local-authority/30UE,Area 2 - Waste Transport/Eastern & Central Teams,Materials General,4040,HUB NUT SOCKET,10/02/2021,0000463977,160.00,Revenue,LANCS DAF,0
South Ribble Borough Council,http://statistics.data.gov.uk/id/local-authority/30UE,Area 2 - Waste Transport/Eastern & Central Teams,Materials General,4040,"1 x spring, 2 x u bolts, 4 x nuts, YA19NKC JFC16117",10/02/2021,0000464001,594.66,Revenue,LANCS DAF,0
South Ribble Borough Council,http://statistics.data.gov.uk/id/local-authority/30UE,Area 2 - Waste Transport/Eastern & Central Teams,Materials General,4040, 2 x wiper blades YD19AUT JFC16118,10/02/2021,0000464001,15.30,Revenue,LANCS DAF,0
South Ribble Borough Council,http://statistics.data.gov.uk/id/local-authority/30UE,Area 2 - Waste Transport/Eastern & Central Teams,Materials General,4040,SERVICE KIT - YD19ATK - JFC16198,24/02/2021,0000464587,291.57,Revenue,LANCS DAF,0
South Ribble Borough Council,http://statistics.data.gov.uk/id/local-authority/30UE,Regeneration,Cap Contract Payment,C230,"Dementia friendly garden at the Civic centre in Leyland,is part of a wider Green links programme. As requested by NAME REDACTED",03/02/2021,0000462425,"10,802.94",Revenue,LANDSCAPE ENGINEERING LIMITED,0
South Ribble Borough Council,http://statistics.data.gov.uk/id/local-authority/30UE,Healthy Communities,Cap Contract Payment,C230,"Party Wall Surveyor advice for the McKenzie Arms development, Bamber Bridge. McKenzie Arms, 319 Station Road, Bamber Bridge",17/02/2021,0000462322,475.00,Revenue,LEA HOUGH & CO,0
South Ribble Borough Council,http://statistics.data.gov.uk/id/local-authority/30UE,Shared Financial Services,Lease Car Rental,1131,VIN REDACTED - NAME REDACTED,10/02/2021,0000463750,"2,883.24",Revenue,LeasePlan UK Ltd T/A Automotive Leasing,0
South Ribble Borough Council,http://statistics.data.gov.uk/id/local-authority/30UE,Shared Financial Services,Lease Car Rental,1131,VAT,10/02/2021,0000463750,257.41,Revenue,LeasePlan UK Ltd T/A Automotive Leasing,0
South Ribble Borough Council,http://statistics.data.gov.uk/id/local-authority/30UE,Shared Financial Services,Manual Control,0001,- VAT,10/02/2021,0000463750,-257.41,Revenue,LeasePlan UK Ltd T/A Automotive Leasing,0
South Ribble Borough Council,http://statistics.data.gov.uk/id/local-authority/30UE,Property Services,Reactive Repair & Maintenance,2020,We require a deep clean of North Lodge at Worden Park. As per NAME REDACTED instruction,17/02/2021,0000464002,300.00,Revenue,LEYLAND CLEANING SERVICES,0
South Ribble Borough Council,http://statistics.data.gov.uk/id/local-authority/30UE,Environmental Health,Consultancy Fees,4541,Consultancy - per NAME REDACTED,17/02/2021,0000464006,"3,000.00",Revenue,Manus Review and Consulting Limited,0
South Ribble Borough Council,http://statistics.data.gov.uk/id/local-authority/30UE,Housing,Cap Professional Fees,C210,Surveyor fees for 12 month maternity cover for DFG cases 20000,10/02/2021,0000464065,"4,295.00",Revenue,Mathew Butterworth Associates Limited,0
South Ribble Borough Council,http://statistics.data.gov.uk/id/local-authority/30UE,Governance & Business Transf Mgnt,Operational Equip & Tools,4010,"B280 Evaporative Humidifier x2, Meaco 25L Low Energy x3, B280 filter set Meaco x2, Brune Waterfresh 1l Meaco x1, Postage Meaco",03/02/2021,0000461370,"2,602.97",Revenue,Meaco Measurement and Control Ltd,0
South Ribble Borough Council,http://statistics.data.gov.uk/id/local-authority/30UE,Property Services,Reactive Repair & Maintenance,2020,"ADDRESS REDACTED - Erect Scaffolding.Repair to flues, roof lights, flashings and verge cappings. Per quote 1095 NAME REDACTED",24/02/2021,0000464452,"1,600.00",Revenue,Mick Bamber,0
South Ribble Borough Council,http://statistics.data.gov.uk/id/local-authority/30UE,Area 2 - Waste Transport/Eastern & Central Teams,External Contractors Charges,4570,GL70 SVX - Vehicle Recovery from Longmeanygate Leyland on 3.2.21 - JFC16102,24/02/2021,0000464575,368.50,Revenue,MILLERS OF LONGTON LTD,0
South Ribble Borough Council,http://statistics.data.gov.uk/id/local-authority/30UE,Area 3 - Parks/Leyland East West,GM Refurbishment,4657,Annual Inspection(2020) of 39 playground/youth areas in South Ribble. The 3 year renewal of NAME REDACTED Inspection qualification,24/02/2021,0000464337,"1,905.00",Revenue,MORRAL PLAY SERVICES LTD,0
South Ribble Borough Council,http://statistics.data.gov.uk/id/local-authority/30UE,Legal,Legal,4821,PROVIDING ADVICE ON PROJECT X AND PICKERING FARM,05/02/2021,0000463954,"1,575.00",Revenue,MR IAN PONTER,0
South Ribble Borough Council,http://statistics.data.gov.uk/id/local-authority/30UE,Area 2 - Waste Transport/Eastern & Central Teams,External Contractors Charges,4570,1 Spec Repair YD19 ATK JFC16031,19/02/2021,0000464415,800.00,Revenue,Municipal Vehicle Services,0
South Ribble Borough Council,http://statistics.data.gov.uk/id/local-authority/30UE,Area 2 - Waste Transport/Eastern & Central Teams,Materials General,4040,Service Wash 4.1.21 VO65 KRE JFC16103,05/02/2021,0000463941,65.00,Revenue,NAYLORS TRANSPORT (LEYLAND) ltd,0
South Ribble Borough Council,http://statistics.data.gov.uk/id/local-authority/30UE,Area 2 - Waste Transport/Eastern & Central Teams,Materials General,4040,Service Wash 8.1.21 VX18 KLC JFC16104,05/02/2021,0000463941,65.00,Revenue,NAYLORS TRANSPORT (LEYLAND) ltd,0
South Ribble Borough Council,http://statistics.data.gov.uk/id/local-authority/30UE,Area 2 - Waste Transport/Eastern & Central Teams,Materials General,4040,Service Wash 11.1.21 VO65 KPZ JFC16105,05/02/2021,0000463941,65.00,Revenue,NAYLORS TRANSPORT (LEYLAND) ltd,0
South Ribble Borough Council,http://statistics.data.gov.uk/id/local-authority/30UE,Area 2 - Waste Transport/Eastern & Central Teams,Materials General,4040,Service Wash 20.1.21 PO20 ZRV JFC16106,05/02/2021,0000463941,65.00,Revenue,NAYLORS TRANSPORT (LEYLAND) ltd,0
South Ribble Borough Council,http://statistics.data.gov.uk/id/local-authority/30UE,Area 2 - Waste Transport/Eastern & Central Teams,Materials General,4040,Service Wash 25.1.21 VO65 KRF JFC16107,05/02/2021,0000463941,65.00,Revenue,NAYLORS TRANSPORT (LEYLAND) ltd,0
South Ribble Borough Council,http://statistics.data.gov.uk/id/local-authority/30UE,Area 2 - Waste Transport/Eastern & Central Teams,Materials General,4040,Service Wash 26.1.21 PO20ZRY JFC16108,05/02/2021,0000463941,65.00,Revenue,NAYLORS TRANSPORT (LEYLAND) ltd,0
South Ribble Borough Council,http://statistics.data.gov.uk/id/local-authority/30UE,Area 2 - Waste Transport/Eastern & Central Teams,Materials General,4040,Service Wash 29.1.21 PO20 ZRX JFC16109,05/02/2021,0000463941,65.00,Revenue,NAYLORS TRANSPORT (LEYLAND) ltd,0
South Ribble Borough Council,http://statistics.data.gov.uk/id/local-authority/30UE,Environmental Health,Burial Expenses,5310,Funeral for NAME REDACTED per NAME REDACTED,10/02/2021,0000464076,"1,650.00",Revenue,NAME REDACTED,0
South Ribble Borough Council,http://statistics.data.gov.uk/id/local-authority/30UE,Regeneration,Miscellaneous Expenses,4851,"Installation of Christmas lights at Franklands, Longton, Walmer Green, and Tardy Gate, incl dressing, setting timers and undressing.",03/02/2021,0000463685,465.00,Revenue,NEWGATE NURSERIES,0
South Ribble Borough Council,http://statistics.data.gov.uk/id/local-authority/30UE,Democratic Services,Members Training,1406,3 FURTHER SESSIONS FOR NAMES REDACTED OF ` PERSONAL DEVELOPMENT CONVERSATIONS` COURSE ,26/02/2021,0000464657,"3,150.00",Revenue,NORTH WEST EMPLOYERS,0
South Ribble Borough Council,http://statistics.data.gov.uk/id/local-authority/30UE,Property Services,Reactive Repair & Maintenance,2020,Please undertake a service to the pumping station at worden park,19/02/2021,0000464393,250.00,Revenue,NORTH WEST MAINTENANCE SERVICES LTD,0
South Ribble Borough Council,http://statistics.data.gov.uk/id/local-authority/30UE,Neighbourhood Admin & Support,Materials General,4040,550/900mm 2.4mm PW M8 X 50 @ 295mm PCD 9Cap Nut) - Azura,10/02/2021,0000463680,788.16,Revenue,NORTHERN MUNICIPAL SPARES LTD,0
South Ribble Borough Council,http://statistics.data.gov.uk/id/local-authority/30UE,Neighbourhood Admin & Support,Materials General,4040,550/900mm 2.4mm PW M8 X 50 @ 295mm PCD 9Cap Nut) - Azura,10/02/2021,0000463680,788.16,Revenue,NORTHERN MUNICIPAL SPARES LTD,0
South Ribble Borough Council,http://statistics.data.gov.uk/id/local-authority/30UE,Neighbourhood Admin & Support,Materials General,4040,FREIGHT,10/02/2021,0000463680,41.40,Revenue,NORTHERN MUNICIPAL SPARES LTD,0
South Ribble Borough Council,http://statistics.data.gov.uk/id/local-authority/30UE,Neighbourhood Admin & Support,Materials General,4040,78399/2 POLY WIRE CHANNEL BRUSH 2.8mm POLY & 3.3mm WIRE 5 ROW 700/1000mm,24/02/2021,0000464645,978.30,Revenue,NORTHERN MUNICIPAL SPARES LTD,0
South Ribble Borough Council,http://statistics.data.gov.uk/id/local-authority/30UE,Neighbourhood Admin & Support,Materials General,4040,71107/1 POLY & WIRE (SWINGO) CHANNEL BRUSH CARRIAGE 50.00 (Approx),24/02/2021,0000464645,176.46,Revenue,NORTHERN MUNICIPAL SPARES LTD,0
South Ribble Borough Council,http://statistics.data.gov.uk/id/local-authority/30UE,Neighbourhood Admin & Support,Materials General,4040,freight,24/02/2021,0000464645,47.16,Revenue,NORTHERN MUNICIPAL SPARES LTD,0
South Ribble Borough Council,http://statistics.data.gov.uk/id/local-authority/30UE,Information Services,Network and Security,4247,"Emergency Licence Pack - 100, Annual Standard Support and Maintenance - Netilla Licence Pack 50, Netilla OS Virtual Appliance",24/02/2021,0000464664,"2,945.00",Revenue,NVIRON LTD,0
South Ribble Borough Council,http://statistics.data.gov.uk/id/local-authority/30UE,Regeneration,Contributions to Other Bodies,4730,Supply and delivery of food for the Holiday Hunger scheme - Spring 2021,17/02/2021,0000464336,"10,260.00",Revenue,Oncore Trading,0
South Ribble Borough Council,http://statistics.data.gov.uk/id/local-authority/30UE,Regeneration,Contributions to Other Bodies,4730,vatable items,17/02/2021,0000464336,"1,140.00",Revenue,Oncore Trading,0
South Ribble Borough Council,http://statistics.data.gov.uk/id/local-authority/30UE,Information Services,Technical Support,4246,"Sophos - Direct Support Only SG 210 Premium Support, Sophos - Software Subscriptions SG 210 Web Protection 12 MOS RENEWAL ",03/02/2021,0000463732,945.90,Revenue,Orange Cyberdefense UK,0
South Ribble Borough Council,http://statistics.data.gov.uk/id/local-authority/30UE,Democratic Services,Cap Plant & Equip,C451,74 x V1 POLLING BOOTHS (2-COMPARTMENT) INCL DEL. DATE AND TIME OF DELIVERY TO BE CONFIRMED IN ADVANCE.,19/02/2021,0000464410,"22,000.00",Revenue,PAKFLATT (UK) LTD,0
South Ribble Borough Council,http://statistics.data.gov.uk/id/local-authority/30UE,Area 2 - Waste Transport/Eastern & Central Teams,Materials General,4040,1  x DPF (filter) MV12 SWN JFC16071,12/02/2021,0000463654,494.59,Revenue,Parts Alliance Group Ltd T/A BBC Superfactors,0
South Ribble Borough Council,http://statistics.data.gov.uk/id/local-authority/30UE,Healthy Communities,Consumable Clng Materials,2711,Purchase Order to Cover order`s raised during pandemic without PO`s.,10/02/2021,0000464084,252.40,Revenue,Pattersons (Bristol) Ltd,0
South Ribble Borough Council,http://statistics.data.gov.uk/id/local-authority/30UE,Healthy Communities,Consumable Clng Materials,2711,Purchase Order to Cover order`s raised during pandemic without PO`s.,10/02/2021,0000464087,451.84,Revenue,Pattersons (Bristol) Ltd,0
South Ribble Borough Council,http://statistics.data.gov.uk/id/local-authority/30UE,Healthy Communities,Consumable Clng Materials,2711,Purchase Order to Cover order`s raised during pandemic without PO`s.,10/02/2021,0000464095,340.90,Revenue,Pattersons (Bristol) Ltd,0
South Ribble Borough Council,http://statistics.data.gov.uk/id/local-authority/30UE,Democratic Services,Civic & Remembrance Day,463A,TO PROVIDE LIGHTING OF WORDEN PARK ARCHWAY FOR HOLOCAUST DAY AS PER QUOTATION,05/02/2021,0000463686,500.00,Revenue,Paul K Sound & Vision,0
South Ribble Borough Council,http://statistics.data.gov.uk/id/local-authority/30UE,Healthy Communities,Professional Fees,4510,12hrs of Boxing Coaching @ 40ph @ Vernon Carus Sports Club during October Half Term Active Camps.,03/02/2021,0000463720,480.00,Revenue,Penwortham Boxing Club CIC,0
South Ribble Borough Council,http://statistics.data.gov.uk/id/local-authority/30UE,Revenues Plus,Manual Control,0001,,03/02/2021,0000462354,299.94,Revenue,PENWORTHAM SPORTS AND SOCIAL CLUB,0
South Ribble Borough Council,http://statistics.data.gov.uk/id/local-authority/30UE,Area 2 - Waste Transport/Eastern & Central Teams,Contract Printing,4127,Provision & posting of garden waste permits 2021/22 and hosting of permit management website. As per quote dated 28/08/2020 ,12/02/2021,0000464045,"12,319.16",Revenue,Permiserv Ltd,0
South Ribble Borough Council,http://statistics.data.gov.uk/id/local-authority/30UE,Area 2 - Waste Transport/Eastern & Central Teams,Materials General,4040,1 x 205 litre 5/30w low sulphur C3 engine oil @ 1.29 per litre,03/02/2021,0000462224,256.71,Revenue,PILKINGTON OILS,0
South Ribble Borough Council,http://statistics.data.gov.uk/id/local-authority/30UE,Area 2 - Waste Transport/Eastern & Central Teams,Materials General,4040,1200 litres Type 46 Hyd Oil,03/02/2021,0000462225,666.00,Revenue,PILKINGTON OILS,0
South Ribble Borough Council,http://statistics.data.gov.uk/id/local-authority/30UE,Area 2 - Waste Transport/Eastern & Central Teams,Materials General,4040,36 x Grease Cartridge @ 1.49,03/02/2021,0000462225,53.64,Revenue,PILKINGTON OILS,0
South Ribble Borough Council,http://statistics.data.gov.uk/id/local-authority/30UE,Planning,Agency Staff,1121,Consultancy work for planning enforcement services,12/02/2021,0000462371,"1,093.60",Revenue,Planning Control & PACE Solutions,0
South Ribble Borough Council,http://statistics.data.gov.uk/id/local-authority/30UE,Planning,Agency Staff,1121,postage,12/02/2021,0000462371,15.00,Revenue,Planning Control & PACE Solutions,0
South Ribble Borough Council,http://statistics.data.gov.uk/id/local-authority/30UE,Planning,Agency Staff,1121,Planning Enforcement consultancy services,12/02/2021,0000462441,"1,634.00",Revenue,Planning Control & PACE Solutions,0
South Ribble Borough Council,http://statistics.data.gov.uk/id/local-authority/30UE,Planning,Agency Staff,1121,Planning Enforcement consultancy services,17/02/2021,0000464157,"1,358.50",Revenue,Planning Control & PACE Solutions,0
South Ribble Borough Council,http://statistics.data.gov.uk/id/local-authority/30UE,Planning,Agency Staff,1121,post,17/02/2021,0000464157,37.50,Revenue,Planning Control & PACE Solutions,0
South Ribble Borough Council,http://statistics.data.gov.uk/id/local-authority/30UE,Environmental Health,Safety  Equipment,4016,"Posturite, Josho Sit Stand Desk per NAME REDACTED",24/02/2021,0000464597,386.91,Revenue,POSTURITE (UK) LTD,0
South Ribble Borough Council,http://statistics.data.gov.uk/id/local-authority/30UE,Neighbourhood Admin & Support,Miscellaneous Expenses,4851,417054 - Pursan Hand Sanitiser 500ml,12/02/2021,0000464104,374.97,Revenue,PREMIER OFFICE SUPPLES (UK) LTD,0
South Ribble Borough Council,http://statistics.data.gov.uk/id/local-authority/30UE,Neighbourhood Admin & Support,Operational Equip & Tools,4010,C004448 -Rexel V430 Adjustable 4-Hole Punch Blk  (as per quotation SQUO00115811,12/02/2021,0000464104,79.12,Revenue,PREMIER OFFICE SUPPLES (UK) LTD,0
South Ribble Borough Council,http://statistics.data.gov.uk/id/local-authority/30UE,Regeneration,Contributions to Other Bodies,4730,"Grant 2020-21 as per Grant Agreement Instalment 1 - 7,500 Instalment 2 - 7,500",17/02/2021,0000463683,"7,500.00",Revenue,Preston Community Transport,0
South Ribble Borough Council,http://statistics.data.gov.uk/id/local-authority/30UE,Area 2 - Waste Transport/Eastern & Central Teams,Materials General,4040,TR227,05/02/2021,0000463688,332.35,Revenue,PRESTON TYRE SPECIALISTS,0
South Ribble Borough Council,http://statistics.data.gov.uk/id/local-authority/30UE,Area 2 - Waste Transport/Eastern & Central Teams,Materials General,4040,TR228,26/02/2021,0000464616,413.75,Revenue,PRESTON TYRE SPECIALISTS,0
South Ribble Borough Council,http://statistics.data.gov.uk/id/local-authority/30UE,Democratic Services,Postage General,4291,PI REFRESH 1ST MAILING (2266 LETTERS) JOB REF: 7668,05/02/2021,0000463953,"1,026.83",Revenue,PRINT IMAGE FACILITIES LLP,0
South Ribble Borough Council,http://statistics.data.gov.uk/id/local-authority/30UE,Democratic Services,Postage General,4291,PI REFRESH MAILINGS POSTAGE 655 MAILING 2 - STANDARD TARRIFF 2 MAILING 2 - OVERSEAS JOB REF:  7668,26/02/2021,0000464697,299.52,Revenue,PRINT IMAGE FACILITIES LLP,0
South Ribble Borough Council,http://statistics.data.gov.uk/id/local-authority/30UE,Homelessness,Contributions to Other Bodies,4730,Agreed payment for residual rent arrears following claim for HB for NAME REDACTED,10/02/2021,0000464005,432.31,Revenue,PROGRESS HOUSING GRP ref:DNSOU001,0
South Ribble Borough Council,http://statistics.data.gov.uk/id/local-authority/30UE,Homelessness,Void Loss,5313,Agreed void loss payment,17/02/2021,0000464175,"1,319.08",Revenue,PROGRESS HOUSING GRP ref:DNSOU001,0
South Ribble Borough Council,http://statistics.data.gov.uk/id/local-authority/30UE,Area 3 - Parks/Leyland East West,GM Refurbishment,4657,Sand Play table top and x2 complete chain feeds including fixings as per quotation no. 2012.27960.,05/02/2021,0000463946,917.47,Revenue,PROLUDIC LTD,0
South Ribble Borough Council,http://statistics.data.gov.uk/id/local-authority/30UE,Property Services,Reactive Repair & Maintenance,2020,Please supply & fit a new door to the hairdressers shop ADDRESS REDACTED as per quotation Q3731,10/02/2021,0000464004,500.00,Revenue,PSR & Sons Joiners & Building Contractors,0
South Ribble Borough Council,http://statistics.data.gov.uk/id/local-authority/30UE,Property Services,Reactive Repair & Maintenance,2020,Labour,10/02/2021,0000464004,60.00,Revenue,PSR & Sons Joiners & Building Contractors,0
South Ribble Borough Council,http://statistics.data.gov.uk/id/local-authority/30UE,Property Services,Reactive Repair & Maintenance,2020,REF: REMEDIAL WORKS TO WORDEN PARK NORTH LODGE OUR REF LRS Q 3766 NOTH LODGE To Ease adjust rear Door,17/02/2021,0000464173,325.00,Revenue,PSR & Sons Joiners & Building Contractors,0
South Ribble Borough Council,http://statistics.data.gov.uk/id/local-authority/30UE,Property Services,Reactive Repair & Maintenance,2020,,17/02/2021,0000464173,50.00,Revenue,PSR & Sons Joiners & Building Contractors,0
South Ribble Borough Council,http://statistics.data.gov.uk/id/local-authority/30UE,Regeneration,Cap Contract Payment,C230,Please undertake the ``Worden hall refurbishment project part to RIBA stage 3``,05/02/2021,0000463730,949.00,Revenue,Purcell Architecture Limited,0
South Ribble Borough Council,http://statistics.data.gov.uk/id/local-authority/30UE,Area 3 - Parks/Leyland East West,Cap Contract Payment,C230,"Alteration, Adaption, Extension and Refurbishment Works - Hurst Grange Coach House, Penwortham",03/02/2021,0000462057,"32,035.76",Revenue,R Developments Ltd T/A Rosslee Construction Ltd,0
South Ribble Borough Council,http://statistics.data.gov.uk/id/local-authority/30UE,Area 3 - Parks/Leyland East West,Cap Contract Payment,C230,"Alteration, Adaption, Extension and Refurbishment Works - Hurst Grange Coach House, Penwortham",03/02/2021,0000463679,"45,195.72",Revenue,R Developments Ltd T/A Rosslee Construction Ltd,0
South Ribble Borough Council,http://statistics.data.gov.uk/id/local-authority/30UE,Neighbourhood Admin & Support,Hiring Expenses,3212,2 TON EXCAVATOR - 1 WEEK,03/02/2021,0000462030,252.00,Revenue,Readyplant Limited,0
South Ribble Borough Council,http://statistics.data.gov.uk/id/local-authority/30UE,Area 3 - Parks/Leyland East West,Hiring Expenses,3212,Hire of 1 x 3  tonne tracked dumper from Tuesday 5th January 2021 - Friday 8th January 2021,03/02/2021,0000463633,140.00,Revenue,Readyplant Limited,0
South Ribble Borough Council,http://statistics.data.gov.uk/id/local-authority/30UE,Area 3 - Parks/Leyland East West,Hiring Expenses,3212,Hire of 1 x 1.5 tonne excavator from Tuesday 5th January 2021- Friday 8th January 2021,03/02/2021,0000463633,160.00,Revenue,Readyplant Limited,0
South Ribble Borough Council,http://statistics.data.gov.uk/id/local-authority/30UE,Area 3 - Parks/Leyland East West,Hiring Expenses,3212,DELIVERY,03/02/2021,0000463633,40.00,Revenue,Readyplant Limited,0
South Ribble Borough Council,http://statistics.data.gov.uk/id/local-authority/30UE,Area 3 - Parks/Leyland East West,Hiring Expenses,3212,Collection,03/02/2021,0000463633,40.00,Revenue,Readyplant Limited,0
South Ribble Borough Council,http://statistics.data.gov.uk/id/local-authority/30UE,Property Services,Planned Repair & Maintenance,2021,"New gulley on the pathway and to run the new drain to the manhole 12m away to fit a new plastic road gulley, fit 110mm plastic pipes",17/02/2021,0000464130,600.00,Revenue,RED ROSE BUILDING MAINTENANCE,0
South Ribble Borough Council,http://statistics.data.gov.uk/id/local-authority/30UE,Property Services,Planned Repair & Maintenance,2021,MATERIALS,17/02/2021,0000464130,350.00,Revenue,RED ROSE BUILDING MAINTENANCE,0
South Ribble Borough Council,http://statistics.data.gov.uk/id/local-authority/30UE,Development Enterprise & Comm Mgnt,Economic Regeneration,485A,Rental costs for storage unit C11 -35 square foot self storage unit. 1st April 2020 � March 31st 2021 as requested by NAME REDACTED,03/02/2021,0000463655,823.68,Revenue,Red Rose Self Storage Limited,0
South Ribble Borough Council,http://statistics.data.gov.uk/id/local-authority/30UE,Area 2 - Waste Transport/Eastern & Central Teams,Materials General,4040,1 x Yoke cylinder 1 x Yoke Pin 1 x Keep Plate 2 x Yoke Profiles Carriage YD19 AYK JFC16031,19/02/2021,0000464330,803.19,Revenue,Refuse Vehicle Parts,0
South Ribble Borough Council,http://statistics.data.gov.uk/id/local-authority/30UE,Area 3 - Parks/Leyland East West,GM Refurbishment,4657,"Additional design details for glazed canopy, Hurst Grange Coach House Penwortham",19/02/2021,0000464380,"1,375.00",Revenue,Reid Jones Partnership,0
South Ribble Borough Council,http://statistics.data.gov.uk/id/local-authority/30UE,Environmental Health,Corp Subs to Professional Bodies,4720,Annual RIAMS Subscription - per NAME REDACTED,17/02/2021,0000464077,"3,060.00",Revenue,RHE LIMITED,0
South Ribble Borough Council,http://statistics.data.gov.uk/id/local-authority/30UE,Information Services,Photocopier Lease Rental,4036,1/2/21 to 30/4/21,24/02/2021,0000464628,"5,851.63",Revenue,RICOH (UK) LTD,0
South Ribble Borough Council,http://statistics.data.gov.uk/id/local-authority/30UE,Information Services,IT Consumables,413A,1/11/20 to 31/1/21,24/02/2021,0000464628,"2,699.63",Revenue,RICOH (UK) LTD,0
South Ribble Borough Council,http://statistics.data.gov.uk/id/local-authority/30UE,Shared Financial Services,Service Charge,485C,ADDRESS REDACTED  ,03/02/2021,0000460942,400.00,Revenue,ROUNDHOUSE PROPERTIES LTD,0
South Ribble Borough Council,http://statistics.data.gov.uk/id/local-authority/30UE,Shared Financial Services,Service Charge,485C,ADDRESS REDACTED  ,03/02/2021,0000460942,400.00,Revenue,ROUNDHOUSE PROPERTIES LTD,0
South Ribble Borough Council,http://statistics.data.gov.uk/id/local-authority/30UE,Shared Financial Services,Service Charge,485C,ADDRESS REDACTED  ,03/02/2021,0000460942,400.00,Revenue,ROUNDHOUSE PROPERTIES LTD,0
South Ribble Borough Council,http://statistics.data.gov.uk/id/local-authority/30UE,Shared Financial Services,Service Charge,485C,ADDRESS REDACTED  ,03/02/2021,0000460942,400.00,Revenue,ROUNDHOUSE PROPERTIES LTD,0
South Ribble Borough Council,http://statistics.data.gov.uk/id/local-authority/30UE,Shared Financial Services,Service Charge,485C,ADDRESS REDACTED  ,03/02/2021,0000460942,400.00,Revenue,ROUNDHOUSE PROPERTIES LTD,0
South Ribble Borough Council,http://statistics.data.gov.uk/id/local-authority/30UE,Information Services,Business Reply Services,4295,11 feb 21,24/02/2021,0000464585,333.33,Revenue,ROYAL MAIL GROUP PLC,0
South Ribble Borough Council,http://statistics.data.gov.uk/id/local-authority/30UE,Area 2 - Waste Transport/Eastern & Central Teams,Materials General,4040,Hopper overhaul - materials only PF18 JOV JFC16154,24/02/2021,0000464357,685.66,Revenue,RTS Muni,0
South Ribble Borough Council,http://statistics.data.gov.uk/id/local-authority/30UE,Area 2 - Waste Transport/Eastern & Central Teams,External Contractors Charges,4570,LOLER INSPECTION - ML67HPJ - JFC16203,26/02/2021,0000464649,45.00,Revenue,RTS Muni,0
South Ribble Borough Council,http://statistics.data.gov.uk/id/local-authority/30UE,Area 2 - Waste Transport/Eastern & Central Teams,External Contractors Charges,4570,LOLER INSPECTION - MV12SWN - JFC16204,26/02/2021,0000464649,45.00,Revenue,RTS Muni,0
South Ribble Borough Council,http://statistics.data.gov.uk/id/local-authority/30UE,Area 2 - Waste Transport/Eastern & Central Teams,External Contractors Charges,4570,LOLER INSPECTION - MV12SUF - JFC16205,26/02/2021,0000464649,45.00,Revenue,RTS Muni,0
South Ribble Borough Council,http://statistics.data.gov.uk/id/local-authority/30UE,Area 2 - Waste Transport/Eastern & Central Teams,External Contractors Charges,4570,LOLER INSPECTION - MV12SUA-JFC16206,26/02/2021,0000464649,45.00,Revenue,RTS Muni,0
South Ribble Borough Council,http://statistics.data.gov.uk/id/local-authority/30UE,Area 2 - Waste Transport/Eastern & Central Teams,External Contractors Charges,4570,LOLER INSPECTION - BR19ODN-JFC16207,26/02/2021,0000464649,45.00,Revenue,RTS Muni,0
South Ribble Borough Council,http://statistics.data.gov.uk/id/local-authority/30UE,Area 2 - Waste Transport/Eastern & Central Teams,External Contractors Charges,4570,LOLER INSPECTION - BX19EOV - JFC16208,26/02/2021,0000464649,45.00,Revenue,RTS Muni,0
South Ribble Borough Council,http://statistics.data.gov.uk/id/local-authority/30UE,Area 2 - Waste Transport/Eastern & Central Teams,External Contractors Charges,4570,LOLER INSPECTION - PN58WFZ - JFC16209,26/02/2021,0000464649,45.00,Revenue,RTS Muni,0
South Ribble Borough Council,http://statistics.data.gov.uk/id/local-authority/30UE,Area 2 - Waste Transport/Eastern & Central Teams,External Contractors Charges,4570,LOLER INSPECTION - LN69XRM - JFC16210,26/02/2021,0000464649,45.00,Revenue,RTS Muni,0
South Ribble Borough Council,http://statistics.data.gov.uk/id/local-authority/30UE,Legal,Legal,4821,PROFESSIONAL SERVICES IN RELATION TO ORCHARD FARM - POTENTIAL JR TO STOP NOTICE.,12/02/2021,0000464184,600.00,Revenue,RUTH STOCKLEY,0
South Ribble Borough Council,http://statistics.data.gov.uk/id/local-authority/30UE,Revenues Plus,Miscellaneous Expenses,4851,,09/02/2021,0000459007,16.67,Revenue,S R B C,0
South Ribble Borough Council,http://statistics.data.gov.uk/id/local-authority/30UE,Revenues Plus,Core Fund,4861,,09/02/2021,0000459007,7.33,Revenue,S R B C,0
South Ribble Borough Council,http://statistics.data.gov.uk/id/local-authority/30UE,Revenues Plus,Miscellaneous Expenses,4851,,09/02/2021,0000459007,13.50,Revenue,S R B C,0
South Ribble Borough Council,http://statistics.data.gov.uk/id/local-authority/30UE,Revenues Plus,Miscellaneous Expenses,4851,,09/02/2021,0000459007,4.17,Revenue,S R B C,0
South Ribble Borough Council,http://statistics.data.gov.uk/id/local-authority/30UE,Revenues Plus,Operational Equip & Tools,4010,,09/02/2021,0000459007,29.48,Revenue,S R B C,0
South Ribble Borough Council,http://statistics.data.gov.uk/id/local-authority/30UE,Revenues Plus,Dev ftarget Sports-Coaching,4894,,09/02/2021,0000459007,36.99,Revenue,S R B C,0
South Ribble Borough Council,http://statistics.data.gov.uk/id/local-authority/30UE,Revenues Plus,Operational Equip & Tools,4010,,09/02/2021,0000459007,6.00,Revenue,S R B C,0
South Ribble Borough Council,http://statistics.data.gov.uk/id/local-authority/30UE,Revenues Plus,Analyst Fee,4542,,09/02/2021,0000459007,25.50,Revenue,S R B C,0
South Ribble Borough Council,http://statistics.data.gov.uk/id/local-authority/30UE,Revenues Plus,External Catering Charges,4575,,09/02/2021,0000459007,8.21,Revenue,S R B C,0
South Ribble Borough Council,http://statistics.data.gov.uk/id/local-authority/30UE,Revenues Plus,Contributions to Other Bodies,4730,,09/02/2021,0000459007,168.60,Revenue,S R B C,0
South Ribble Borough Council,http://statistics.data.gov.uk/id/local-authority/30UE,Revenues Plus,Operational Equip & Tools,4010,,09/02/2021,0000459007,14.00,Revenue,S R B C,0
South Ribble Borough Council,http://statistics.data.gov.uk/id/local-authority/30UE,Revenues Plus,Materials General,4040,,09/02/2021,0000459007,0.41,Revenue,S R B C,0
South Ribble Borough Council,http://statistics.data.gov.uk/id/local-authority/30UE,Revenues Plus,Materials General,4040,,09/02/2021,0000459007,4.16,Revenue,S R B C,0
South Ribble Borough Council,http://statistics.data.gov.uk/id/local-authority/30UE,Revenues Plus,Office Requisites,4136,,09/02/2021,0000459007,10.52,Revenue,S R B C,0
South Ribble Borough Council,http://statistics.data.gov.uk/id/local-authority/30UE,Revenues Plus,Materials General,4040,,09/02/2021,0000459007,4.08,Revenue,S R B C,0
South Ribble Borough Council,http://statistics.data.gov.uk/id/local-authority/30UE,Revenues Plus,Petrol,3131,,09/02/2021,0000459007,9.95,Revenue,S R B C,0
South Ribble Borough Council,http://statistics.data.gov.uk/id/local-authority/30UE,Revenues Plus,Materials General,4040,,09/02/2021,0000459007,6.79,Revenue,S R B C,0
South Ribble Borough Council,http://statistics.data.gov.uk/id/local-authority/30UE,Revenues Plus,Materials General,4040,,09/02/2021,0000459007,8.00,Revenue,S R B C,0
South Ribble Borough Council,http://statistics.data.gov.uk/id/local-authority/30UE,Area 2 - Waste Transport/Eastern & Central Teams,Materials General,4040,1000 litres Energize Premium Hi Foaming TFR with Wax Delivered 26.1.21,24/02/2021,0000464652,911.15,Revenue,Saanro International Ltd,0
South Ribble Borough Council,http://statistics.data.gov.uk/id/local-authority/30UE,Area 2 - Waste Transport/Eastern & Central Teams,Cap Vehicles,C440,Optional stowage facility for water stand pipe and Amber LED strobe lights to front  (x2) and to both sides (x1 each side),12/02/2021,0000463947,"1,349.66",Revenue,Scarab Sweepers Ltd,0
South Ribble Borough Council,http://statistics.data.gov.uk/id/local-authority/30UE,Area 2 - Waste Transport/Eastern & Central Teams,Cap Vehicles,C440,2 x Compact Sweepers as per submitted tender documents dated 29.6.20,12/02/2021,0000463947,"68,392.84",Revenue,Scarab Sweepers Ltd,0
South Ribble Borough Council,http://statistics.data.gov.uk/id/local-authority/30UE,Area 2 - Waste Transport/Eastern & Central Teams,Cap Vehicles,C440,2 x Compact Sweepers as per submitted tender documents dated 29.6.20,12/02/2021,0000463948,"69,742.50",Revenue,Scarab Sweepers Ltd,0
South Ribble Borough Council,http://statistics.data.gov.uk/id/local-authority/30UE,Area 2 - Waste Transport/Eastern & Central Teams,Materials General,4040,1 x spare wheel for the Scarab Azura Flex GL70 SVY JFC16072,24/02/2021,0000464656,390.57,Revenue,Scarab Sweepers Ltd,0
South Ribble Borough Council,http://statistics.data.gov.uk/id/local-authority/30UE,Area 2 - Waste Transport/Eastern & Central Teams,Materials General,4040,1 x spare wheel for the Scarab Azura Flex GL70 SVX JFC16073,24/02/2021,0000464656,390.57,Revenue,Scarab Sweepers Ltd,0
South Ribble Borough Council,http://statistics.data.gov.uk/id/local-authority/30UE,Development Enterprise & Comm Mgnt,Serco Leisure Operating Ltd-R&M-Core Fee,4536,R & M for 2020/2021,17/02/2021,0000463721,"14,801.50",Revenue,SERCO LEISURE (OP) LTD,0
South Ribble Borough Council,http://statistics.data.gov.uk/id/local-authority/30UE,Democratic Services,Polling Centre Costs,4421,80 X CCEPCCCP CONVERSION PACKS (PCC TO COUNTY ELECTION ) @ 495,24/02/2021,0000464447,396.00,Revenue,SHAW & SONS LTD,0
South Ribble Borough Council,http://statistics.data.gov.uk/id/local-authority/30UE,Area 3 - Parks/Leyland East West,GM Refurbishment,4657,"To carry out a topographical survey at The Holme PF, Bamber Bridge as per quote 6549J dated 13.01.2021",19/02/2021,0000464379,550.00,Revenue,SITE SURVEYING SERVICES LIMITED,0
South Ribble Borough Council,http://statistics.data.gov.uk/id/local-authority/30UE,Area 3 - Parks/Leyland East West,Cap Contract Payment,C230,CDM Principal Designer Duties for Hurst Grange Park Coach House,03/02/2021,0000463729,300.00,Revenue,SkW,0
South Ribble Borough Council,http://statistics.data.gov.uk/id/local-authority/30UE,Homelessness,Temporary Accommodation,5311,SRBC placements at Smithy lodge x4 11-17 October 2020 18-24 October 2020,03/02/2021,0000462459,"1,400.00",Revenue,SMITHY LODGE GUEST HOUSE,0
South Ribble Borough Council,http://statistics.data.gov.uk/id/local-authority/30UE,Development Enterprise & Comm Mgnt,Leisure Services Fee - Core Fee,4532,Leisure Services Fee 2020/2021,26/02/2021,0000463722,"24,780.09",Revenue,SOUTH RIBBLE COMMUNITY LEISURE LTD,0
South Ribble Borough Council,http://statistics.data.gov.uk/id/local-authority/30UE,Shared Financial Services,Amount Paid,0030,monthly deductions from payroll,10/02/2021,0000463626,"1,496.66",Revenue,SOUTH RIBBLE LABOUR PARTY LOCAL GOVERNM,0
South Ribble Borough Council,http://statistics.data.gov.uk/id/local-authority/30UE,Area 2 - Waste Transport/Eastern & Central Teams,External Contractors Charges,4570,1 spec repair VO65 KRD JFC16176,24/02/2021,0000464576,870.00,Revenue,Southfield RCV Services Limited,0
South Ribble Borough Council,http://statistics.data.gov.uk/id/local-authority/30UE,Shared Financial Services,Amount Paid,0030,monthly deductions payroll,10/02/2021,0000463623,416.64,Revenue,ST CATHERINES HOSPICE PROMOTIONS LTD,0
South Ribble Borough Council,http://statistics.data.gov.uk/id/local-authority/30UE,Revenues Plus,Manual Control,0001,,03/02/2021,0000462362,399.52,Revenue,St Michaels C of E High School,0
South Ribble Borough Council,http://statistics.data.gov.uk/id/local-authority/30UE,Neighbourhood Admin & Support,Diesel Fuel,3132,15000 litres diesel @ 93.45ppl into the feeder tank at Unit 81 Bison Place Moss Side,05/02/2021,0000463634,"14,084.74",Revenue,Standard Fuel Oils LtdMain,0
South Ribble Borough Council,http://statistics.data.gov.uk/id/local-authority/30UE,Neighbourhood Admin & Support,Diesel Fuel,3132,16000 litres diesel @ 93.15ppl into the feeder tank at Unit 81 Bison Place Moss Side,17/02/2021,0000464017,"14,903.07",Revenue,Standard Fuel Oils LtdMain,0
South Ribble Borough Council,http://statistics.data.gov.uk/id/local-authority/30UE,Housing,Capital Grant,C570,DFG WORK TO SUPPLY AND INSTALL A STAIRLIFT  AT ADDRESS REDACTED AS PER QUOTE SUPPLIED OF 6265.00,03/02/2021,0000463629,"6,265.00",Revenue,Stannah Lift Services Ltd,0
South Ribble Borough Council,http://statistics.data.gov.uk/id/local-authority/30UE,Healthy Communities,Cap Contract Payment,C230,Provide the professional services needed in developing the Playing Pitch Hub facilities at Bamber Bridge.  As per NAMES REDACTED,24/02/2021,0000462237,"14,000.00",Revenue,Steve Wells Associates Ltd,0
South Ribble Borough Council,http://statistics.data.gov.uk/id/local-authority/30UE,Housing,Capital Grant,C570,DFG WORK TO COMPLETE LEVEL ACCESS BATHROOM AT ADDRESS REDACTED your housing group property so 50% grant,24/02/2021,0000464444,"1,715.22",Revenue,Structec (NW) Limited,0
South Ribble Borough Council,http://statistics.data.gov.uk/id/local-authority/30UE,Area 3 - Parks/Leyland East West,GM Refurbishment,4657,Pair of Group Swing Hangers with fixings as per quotation reference No. CG020221C,26/02/2021,0000464168,341.90,Revenue,SUTCLIFFE PLAY LTD,0
South Ribble Borough Council,http://statistics.data.gov.uk/id/local-authority/30UE,Area 2 - Waste Transport/Eastern & Central Teams,Materials General,4040,1 x RPD Sensor VO65 KRD JFC16059,24/02/2021,0000464650,264.31,Revenue,Taylor Enginering & Fabrications Ltd,0
South Ribble Borough Council,http://statistics.data.gov.uk/id/local-authority/30UE,Area 2 - Waste Transport/Eastern & Central Teams,External Contractors Charges,4570,1 x spec repair.,26/02/2021,0000463724,"8,034.67",Revenue,TERBERG MATEC UK LTD,0
South Ribble Borough Council,http://statistics.data.gov.uk/id/local-authority/30UE,Regeneration,Core Fund,4861,"To support the group to continue in the community garden at Samlesbury War Memorial Hall, & to develop it further, in the next year.",24/02/2021,0000464358,"1,000.00",Revenue,The Samlesbury Area Civic Society,0
South Ribble Borough Council,http://statistics.data.gov.uk/id/local-authority/30UE,Legal,Reference Books,4142,local auth licensing,12/02/2021,0000463991,822.00,Revenue,THOMSON REUTERS,0
South Ribble Borough Council,http://statistics.data.gov.uk/id/local-authority/30UE,Information Services,Reference Books,4142,R56,26/02/2021,0000464115,288.00,Revenue,THOMSON REUTERS,0
South Ribble Borough Council,http://statistics.data.gov.uk/id/local-authority/30UE,Legal,Reference Books,4142,Rowell Practical Food Manual LL releases annual subscription 2021,12/02/2021,0000464133,568.00,Revenue,THOMSON REUTERS,0
South Ribble Borough Council,http://statistics.data.gov.uk/id/local-authority/30UE,Legal,Reference Books,4142,Rowell Practical Food Manual LL releases annual subscription 2021,12/02/2021,0000464133,568.00,Revenue,THOMSON REUTERS,0
South Ribble Borough Council,http://statistics.data.gov.uk/id/local-authority/30UE,Legal,Reference Books,4142,schofield 56,26/02/2021,0000464570,144.00,Revenue,THOMSON REUTERS,0
South Ribble Borough Council,http://statistics.data.gov.uk/id/local-authority/30UE,Legal,Reference Books,4142,non vat,26/02/2021,0000464570,144.00,Revenue,THOMSON REUTERS,0
South Ribble Borough Council,http://statistics.data.gov.uk/id/local-authority/30UE,Property Services,Cap Contract Payment,C230,DESCRIPTION Timber condition survey at  Worden Hall 16th & 17th December 2020 as per NAME REDACTED as invoice 998.0121WH,24/02/2021,0000464401,"3,804.00",Revenue,Timothy Floyd Limited T/A Floydconsult,0
South Ribble Borough Council,http://statistics.data.gov.uk/id/local-authority/30UE,Property Services,Gas,2304,31/10/20 to 31/1/21,10/02/2021,0000463973,"3,821.84",Revenue,Total Gas & power Ltd,0
South Ribble Borough Council,http://statistics.data.gov.uk/id/local-authority/30UE,Property Services,Climate Change Levy,2307,CCL,10/02/2021,0000463973,443.41,Revenue,Total Gas & power Ltd,0
South Ribble Borough Council,http://statistics.data.gov.uk/id/local-authority/30UE,Property Services,Gas,2304,31/10/20 to 31/1/21,05/02/2021,0000463974,"1,447.65",Revenue,Total Gas & power Ltd,0
South Ribble Borough Council,http://statistics.data.gov.uk/id/local-authority/30UE,Property Services,Climate Change Levy,2307,CCL,05/02/2021,0000463974,140.39,Revenue,Total Gas & power Ltd,0
South Ribble Borough Council,http://statistics.data.gov.uk/id/local-authority/30UE,Property Services,Electricity,2303,1/1/21 31/1/21,17/02/2021,0000464021,549.50,Revenue,Total Gas & power Ltd,0
South Ribble Borough Council,http://statistics.data.gov.uk/id/local-authority/30UE,Property Services,Climate Change Levy,2307,ccl,17/02/2021,0000464021,24.22,Revenue,Total Gas & power Ltd,0
South Ribble Borough Council,http://statistics.data.gov.uk/id/local-authority/30UE,Property Services,Gas,2304,31/12/20-31/1/21,17/02/2021,0000464022,"2,724.24",Revenue,Total Gas & power Ltd,0
South Ribble Borough Council,http://statistics.data.gov.uk/id/local-authority/30UE,Property Services,Climate Change Levy,2307,ccl,17/02/2021,0000464022,332.75,Revenue,Total Gas & power Ltd,0
South Ribble Borough Council,http://statistics.data.gov.uk/id/local-authority/30UE,Property Services,Electricity,2303,4/11/20 to 31/1/21,17/02/2021,0000464028,260.89,Revenue,Total Gas & power Ltd,0
South Ribble Borough Council,http://statistics.data.gov.uk/id/local-authority/30UE,Property Services,Electricity,2303,1/1/21 -31/1/21,17/02/2021,0000464029,"3,518.11",Revenue,Total Gas & power Ltd,0
South Ribble Borough Council,http://statistics.data.gov.uk/id/local-authority/30UE,Property Services,Climate Change Levy,2307,ccl,17/02/2021,0000464029,188.50,Revenue,Total Gas & power Ltd,0
South Ribble Borough Council,http://statistics.data.gov.uk/id/local-authority/30UE,Property Services,Electricity,2303,1/1/21 to 31/1./21,17/02/2021,0000464030,519.84,Revenue,Total Gas & power Ltd,0
South Ribble Borough Council,http://statistics.data.gov.uk/id/local-authority/30UE,Property Services,Climate Change Levy,2307,ccl,17/02/2021,0000464030,25.64,Revenue,Total Gas & power Ltd,0
South Ribble Borough Council,http://statistics.data.gov.uk/id/local-authority/30UE,Property Services,Electricity,2303,1/1/21 - 31/1/21,17/02/2021,0000464032,732.75,Revenue,Total Gas & power Ltd,0
South Ribble Borough Council,http://statistics.data.gov.uk/id/local-authority/30UE,Property Services,Climate Change Levy,2307,ccl,17/02/2021,0000464032,32.11,Revenue,Total Gas & power Ltd,0
South Ribble Borough Council,http://statistics.data.gov.uk/id/local-authority/30UE,Property Services,Electricity,2303,4/11/20 to 3/2/21,17/02/2021,0000464034,399.26,Revenue,Total Gas & power Ltd,0
South Ribble Borough Council,http://statistics.data.gov.uk/id/local-authority/30UE,Property Services,Electricity,2303,4/11/20 to 3/2/21,17/02/2021,0000464036,901.28,Revenue,Total Gas & power Ltd,0
South Ribble Borough Council,http://statistics.data.gov.uk/id/local-authority/30UE,Property Services,Climate Change Levy,2307,ccl,17/02/2021,0000464036,44.91,Revenue,Total Gas & power Ltd,0
South Ribble Borough Council,http://statistics.data.gov.uk/id/local-authority/30UE,Property Services,Electricity,2303,1/1/21 to 31/1/21,17/02/2021,0000464042,"2,897.44",Revenue,Total Gas & power Ltd,0
South Ribble Borough Council,http://statistics.data.gov.uk/id/local-authority/30UE,Property Services,Climate Change Levy,2307,ccl,17/02/2021,0000464042,162.42,Revenue,Total Gas & power Ltd,0
South Ribble Borough Council,http://statistics.data.gov.uk/id/local-authority/30UE,Property Services,Gas,2304,31/10/20 to 31/1/21,12/02/2021,0000464089,396.72,Revenue,Total Gas & power Ltd,0
South Ribble Borough Council,http://statistics.data.gov.uk/id/local-authority/30UE,Property Services,Gas,2304,31/10/20 to 31/1/21,12/02/2021,0000464090,664.39,Revenue,Total Gas & power Ltd,0
South Ribble Borough Council,http://statistics.data.gov.uk/id/local-authority/30UE,Neighbourhood Admin & Support,Materials General,4040, HAND WIPES ANTI-BACTERIAL- HEAVY DUTY - BMDB-665877,12/02/2021,0000464121,297.60,Revenue,United Industrial Supplies Ltd,0
South Ribble Borough Council,http://statistics.data.gov.uk/id/local-authority/30UE,Information Services,Network and Security,4247,01 feb 2021,05/02/2021,0000463746,"2,404.20",Revenue,VODAFONE RE:CABLE & WIRELESS UK,0
South Ribble Borough Council,http://statistics.data.gov.uk/id/local-authority/30UE,Property Services,Water Charges(Metered),2511,Water charges ADDRESS REDACTED,26/02/2021,0000464376,313.03,Revenue,WATER PLUS,0
South Ribble Borough Council,http://statistics.data.gov.uk/id/local-authority/30UE,Property Services,Water Charges(Metered),2511,16/11/20 to 15/2/21,26/02/2021,0000464634,"1,797.68",Revenue,WATER PLUS,0
South Ribble Borough Council,http://statistics.data.gov.uk/id/local-authority/30UE,Property Services,Water Charges(Metered),2511,1/11/20 to 15/2/21,26/02/2021,0000464687,714.71,Revenue,WATER PLUS,0
South Ribble Borough Council,http://statistics.data.gov.uk/id/local-authority/30UE,Legal,Legal,4821,PROFESSIONAL SERVICES WITH REGARD TO FUNDING DOCUMENTATION - HOOLE HALL,03/02/2021,0000463678,"2,139.00",Revenue,WEIGHTMANS LLP,0
South Ribble Borough Council,http://statistics.data.gov.uk/id/local-authority/30UE,Regeneration,Cost of Food,4310,4000 carrier bags for Covid projects. 600 plus 120 VAT,17/02/2021,0000464164,600.00,Revenue,Weldbank Plastic Company Limited,0
South Ribble Borough Council,http://statistics.data.gov.uk/id/local-authority/30UE,Healthy Communities,Cap Contract Payment,C230,"Tree removal for the McKenzie Arms development, Bamber Bridge McKenzie Arms, 319 Station Road, Bamber Bridge, PR5 6EE",17/02/2021,0000462172,"1,390.00",Revenue,WESTFIELD TREE SERVICES LTD,0
South Ribble Borough Council,http://statistics.data.gov.uk/id/local-authority/30UE,Area 3 - Parks/Leyland East West,GM Refurbishment,4657,"Felling, stump grinding and removal of all timber and arisings from site, Hurst Grange Coach House Penwortham",17/02/2021,0000462173,"1,070.00",Revenue,WESTFIELD TREE SERVICES LTD,0
South Ribble Borough Council,http://statistics.data.gov.uk/id/local-authority/30UE,Housing,Capital Grant,C570,DFG LEVEL ACCESS SHOWER AT ADDRESS REDACTED QUOTE SUPPLIED 3631.00- ONWARD PROPERTY SO 50% GRANT,10/02/2021,0000464059,"1,815.50",Revenue,Wright Build Limited,0
South Ribble Borough Council,http://statistics.data.gov.uk/id/local-authority/30UE,Property Services,Professional Fees,4510,"For the provision of a site investigation survey for Quinn Street, Leyland as detailed in your quotation ref QX1527",17/02/2021,0000461438,695.00,Revenue,Your Environmental Company Ltd T/A YourEnvironment,0
South Ribble Borough Council,http://statistics.data.gov.uk/id/local-authority/30UE,Area 3 - Parks/Leyland East West,GM Refurbishment,4657,1x Double Leaf Manual Swing Gate 3.6 wide x 1.2m high in Anthracite Grey.,24/02/2021,0000464403,704.31,Revenue,ZAUN LIMITED,0
South Ribble Borough Council,http://statistics.data.gov.uk/id/local-authority/30UE,Area 3 - Parks/Leyland East West,GM Refurbishment,4657,transport charge,24/02/2021,0000464403,200.00,Revenue,ZAUN LIMITED,0
South Ribble Borough Council,http://statistics.data.gov.uk/id/local-authority/30UE,Property Services,Reactive Repair & Maintenance,2020,Please provide for Moss Side Depot as per NAME REDACTED 12 x  monthly Call Barring 12 x monthly  internet and line rental ,10/02/2021,0000464105,516.00,Revenue,Zen Internet,0
South Ribble Borough Council,http://statistics.data.gov.uk/id/local-authority/30UE,Shared Assurance Services,Fidelity Guarantee,1800,"ZM Risk Management Consultancy Services Fee 2021/22 1,250 + VAT",19/02/2021,0000464411,"1,250.00",Revenue,ZURICH MANAGEMENT SERVICES,0
South Ribble Borough Council,http://statistics.data.gov.uk/id/local-authority/30UE,Shared Assurance Services,Fidelity Guarantee,1800,Engineering inspection fee 2021 exc VAT,24/02/2021,0000464593,"3,053.48",Revenue,Zurich Municipal Insurance plc,0
